Workbook

Sheet الرئيسيه
A3: سجل البحث
A4: من | B4: 1
A5: الى | B5: 7
A6: المندوب | B6: محمد
A7: Galon5 | B7: 560
A8: Galon6 | B8: 1120
A9: White pet | B9: 448
A10: 15 Lit | B10: 322
A11: 3 Lit | B11: 77
A12: 2 Lit | B12: 490
A13: Kasset | B13: 609
A14: الاجمالى | B14: =SUM($B$7:$B$13) -> 3626

Sheet 1
B1: ="تقرير المستودع عن شهر : "& TEXT($A$5,"m , yyyy") -> تقرير المستودع عن شهر : 1 , 2020
C2: الاصناف
A3: التاريخ | B3: المندوب | C3: Galon5 | F3: Galon6 | I3: White pet | L3: 15 Lit | O3: 5 lit | R3: 3 lit | U3: 2 lit | X3: Kasset
C4: تحميل | D4: مرتجع | E4: صافى | F4: تحميل | G4: مرتجع | H4: صافى | I4: تحميل | J4: مرتجع | K4: صافى | L4: تحميل | M4: مرتجع | N4: صافى | O4: تحميل | P4: مرتجع | Q4: صافى | R4: تحميل | S4: مرتجع | T4: صافى | U4: تحميل | V4: مرتجع | W4: صافى | X4: تحميل | Y4: مرتجع | Z4: صافى
A5: 2020-01-06 | B5: سيد | C5: 200 | D5: 70 | E5: =C5-D5 -> 130 | F5: 60 | G5: 20 | H5: =F5-G5 -> 40 | I5: 150 | J5: 60 | K5: =I5-J5 -> 90 | L5: 123 | M5: 23 | N5: =L5-M5 -> 100 | O5: 165 | P5: 50 | Q5: =O5-P5 -> 115 | R5: 60 | S5: 10 | T5: =R5-S5 -> 50 | U5: 150 | V5: 50 | W5: =U5-V5 -> 100 | X5: 100 | Y5: 20 | Z5: =X5-Y5 -> 80
A6: 2020-01-06 | B6: على | C6: 150 | D6: 50 | E6: 100 | F6: 150 | G6: 25 | H6: =F6-G6 -> 125 | I6: 160 | J6: 28 | K6: =I6-J6 -> 132 | L6: 90 | M6: 20 | N6: =L6-M6 -> 70 | O6: 150 | P6: 12 | Q6: =O6-P6 -> 138 | R6: 15 | S6: 2 | T6: =R6-S6 -> 13 | U6: 110 | V6: 90 | W6: =U6-V6 -> 20 | X6: 48 | Y6: 14 | Z6: =X6-Y6 -> 34
A7: 2020-01-06 | B7: محمد | C7: 90 | D7: 10 | E7: 80 | F7: 170 | G7: 10 | H7: 160 | I7: 90 | J7: 26 | K7: 64 | L7: 56 | M7: 10 | N7: 46 | O7: 154 | P7: 54 | Q7: 100 | R7: 23 | S7: 12 | T7: 11 | U7: 90 | V7: 20 | W7: 70 | X7: 96 | Y7: 9 | Z7: 87
A8: 2020-01-06 | B8: شوجن | C8: 110 | D8: 20 | E8: 90 | F8: 110 | G8: 15 | H8: 95 | I8: 60 | J8: 10 | K8: 50 | L8: 80 | M8: 30 | N8: 50 | O8: 100 | P8: 20 | Q8: 80 | R8: 15 | S8: 5 | T8: 10 | U8: 80 | V8: 10 | W8: 70 | X8: 115 | Y8: 13 | Z8: 102
A9: 2020-01-06 | B9: ابراهيم | C9: 170 | D9: 30 | E9: 140 | F9: 56 | G9: 6 | H9: 50 | I9: 66 | J9: 6 | K9: 60 | L9: 70 | M9: 20 | N9: 50 | O9: 120 | P9: 22 | Q9: 98 | R9: 90 | S9: 55 | T9: 35 | U9: 60 | V9: 20 | W9: 40 | X9: 136 | Y9: 36 | Z9: 100
A10: 2020-01-06 | B10: زنجير | C10: 180 | D10: 23 | E10: 157 | F10: 158 | G10: 13 | H10: 145 | I10: 68 | J10: 5 | K10: 63 | L10: 65 | M10: 15 | N10: 50 | O10: 110 | P10: 23 | Q10: 87 | R10: 150 | S10: 50 | T10: 100 | U10: 90 | V10: 65 | W10: 25 | X10: 168 | Y10: 68 | Z10: 100
A11: 2020-01-06 | B11: سلامه | C11: 190 | D11: 25 | E11: 165 | F11: 123 | G11: 23 | H11: 100 | I11: 180 | J11: 20 | K11: 160 | L11: 115 | M11: 15 | N11: 100 | O11: 140 | P11: 25 | Q11: 115 | R11: 200 | S11: 16 | T11: 184 | U11: 135 | V11: 35 | W11: 100 | X11: 85 | Y11: 15 | Z11: 70
A12: 2020-01-06 | B12: فهد | C12: 260 | D12: 15 | E12: 245 | F12: 125 | G12: 15 | H12: 110 | I12: 168 | J12: 25 | K12: 143 | L12: 90 | M12: 30 | N12: 60 | O12: 113 | P12: 26 | Q12: 87 | R12: 170 | S12: 50 | T12: 120 | U12: 60 | V12: 30 | W12: 30 | X12: 68 | Y12: 6 | Z12: 62
A13: 2020-01-06 | B13: كبير | C13: 220 | D13: 50 | E13: 170 | F13: 160 | G13: 50 | H13: 110 | I13: 136 | J13: 30 | K13: 106 | L13: 236 | M13: 36 | N13: 200 | O13: 115 | P13: 24 | Q13: 91 | R13: 136 | S13: 36 | T13: 100 | U13: 85 | V13: 25 | W13: 60 | X13: 65 | Y13: 6 | Z13: 59
A14: 2020-01-06 | B14: رفيق | C14: 80 | D14: 15 | E14: 65 | F14: 110 | G14: 10 | H14: 100 | I14: 190 | J14: 30 | K14: 160 | L14: 330 | M14: 100 | N14: 230 | O14: 160 | P14: 30 | Q14: 130 | R14: 23 | S14: 5 | T14: 18 | U14: 90 | V14: 30 | W14: 60 | X14: 80 | Y14: 10 | Z14: 70
A15: 2020-01-06 | B15: رضوان | C15: 165 | D15: 18 | E15: 147 | F15: 180 | G15: 80 | H15: 100 | I15: 90 | J15: 20 | K15: 70 | L15: 250 | M15: 50 | N15: 200 | O15: 180 | P15: 50 | Q15: 130 | R15: 50 | S15: 5 | T15: 45 | U15: 112 | V15: 12 | W15: 100 | X15: 98 | Y15: 9 | Z15: 89
A16: 2020-01-06 | B16: الشحات | C16: 190 | D16: 19 | E16: 171 | F16: 90 | G16: 10 | H16: 80 | I16: 99 | J16: 15 | K16: 84 | L16: 265 | M16: 65 | N16: 200 | O16: 170 | P16: 50 | Q16: 120 | R16: 90 | S16: 25 | T16: 65 | U16: 98 | V16: 8 | W16: 90 | X16: 85 | Y16: 5 | Z16: 80
A17: 2020-01-06 | B17: عالم جير | C17: 280 | D17: 80 | E17: 200 | F17: 99 | G17: 9 | H17: 90 | I17: 60 | J17: 26 | K17: 34 | L17: 200 | M17: 15 | N17: 185 | O17: 160 | P17: 40 | Q17: 120 | R17: 70 | S17: 50 | T17: 20 | U17: 65 | V17: 15 | W17: 50 | X17: 66 | Y17: 6 | Z17: 60
A18: 2020-01-06 | B18: يسرى | C18: 168 | D18: 18 | E18: 150 | F18: 96 | G18: 6 | H18: 90 | I18: 50 | J18: 24 | K18: 26 | L18: 180 | M18: 16 | N18: 164 | O18: 110 | P18: 10 | Q18: 100 | R18: 85 | S18: 25 | T18: 60 | U18: 66 | V18: 6 | W18: 60 | X18: 56 | Y18: 6 | Z18: 50
A19: 2020-01-06 | B19: حسن | C19: 125 | D19: 25 | E19: 100 | F19: 66 | G19: 8 | H19: 58 | I19: 55 | J19: 30 | K19: 25 | L19: 136 | M19: 19 | N19: 117 | O19: 165 | P19: 65 | Q19: 100 | R19: 98 | S19: 8 | T19: 90 | U19: 165 | V19: 65 | W19: 100 | X19: 178 | Y19: 78 | Z19: 100
A20: 2020-01-06 | B20: زين | C20: 136 | D20: 36 | E20: 100 | F20: 35 | G20: 3 | H20: 32 | I20: 90 | J20: 20 | K20: 70 | L20: 114 | M20: 14 | N20: 100 | O20: 140 | P20: 10 | Q20: 130 | R20: 56 | S20: 6 | T20: 50 | U20: 36 | V20: 3 | W20: 33 | X20: 165 | Y20: 65 | Z20: 100
B21: الاجمالى | C21: =SUM(C5:C20) -> 2714 | D21: =SUM(D5:D20) -> 504 | E21: =SUM(E5:E20) -> 2210 | F21: 1788 | G21: 303 | H21: 1485 | I21: 1712 | J21: 375 | K21: 1337 | L21: 2400 | M21: 478 | N21: 1922 | O21: 2252 | P21: 511 | Q21: 1741 | R21: 1331 | S21: 360 | T21: 971 | U21: 1492 | V21: 484 | W21: 1008 | X21: 1609 | Y21: 366 | Z21: 1243
B29: سجل البحث
B30: من
B31: الى
B32: المندوب
B33: 6جالون
B34: 5جالون
B35: ابيضpet
B36: 15لتر
B37: 3لتر
B38: 2لتر
B39: كاسات

Sheet 2
B1: ="تقرير المستودع عن شهر : "& TEXT($A$5,"m , yyyy") -> تقرير المستودع عن شهر : 2 , 2020
C2: الاصناف
A3: التاريخ | B3: المندوب | C3: Galon5 | F3: Galon6 | I3: White pet | L3: 15 Lit | O3: 5 lit | R3: 3 lit | U3: 2 lit | X3: Kasset
C4: تحميل | D4: مرتجع | E4: صافى | F4: تحميل | G4: مرتجع | H4: صافى | I4: تحميل | J4: مرتجع | K4: صافى | L4: تحميل | M4: مرتجع | N4: صافى | O4: تحميل | P4: مرتجع | Q4: صافى | R4: تحميل | S4: مرتجع | T4: صافى | U4: تحميل | V4: مرتجع | W4: صافى | X4: تحميل | Y4: مرتجع | Z4: صافى
A5: 2020-02-06 | B5: سيد | C5: 200 | D5: 100 | E5: =C5-D5 -> 100 | F5: 60 | G5: 20 | H5: =F5-G5 -> 40 | I5: 150 | J5: 60 | K5: =I5-J5 -> 90 | L5: 123 | M5: 23 | N5: =L5-M5 -> 100 | O5: 165 | P5: 50 | Q5: =O5-P5 -> 115 | R5: 60 | S5: 10 | T5: =R5-S5 -> 50 | U5: 150 | V5: 50 | W5: =U5-V5 -> 100 | X5: 100 | Y5: 20 | Z5: =X5-Y5 -> 80
A6: 2020-02-06 | B6: على | C6: 150 | D6: 50 | E6: =C6-D6 -> 100 | F6: 150 | G6: 25 | H6: =F6-G6 -> 125 | I6: 160 | J6: 28 | K6: =I6-J6 -> 132 | L6: 90 | M6: 20 | N6: =L6-M6 -> 70 | O6: 150 | P6: 12 | Q6: =O6-P6 -> 138 | R6: 15 | S6: 2 | T6: =R6-S6 -> 13 | U6: 110 | V6: 90 | W6: =U6-V6 -> 20 | X6: 48 | Y6: 14 | Z6: =X6-Y6 -> 34
A7: 2020-02-06 | B7: محمد | C7: 90 | D7: 10 | E7: 80 | F7: 170 | G7: 10 | H7: 160 | I7: 90 | J7: 26 | K7: 64 | L7: 56 | M7: 10 | N7: 46 | O7: 154 | P7: 54 | Q7: 100 | R7: 23 | S7: 12 | T7: 11 | U7: 90 | V7: 20 | W7: 70 | X7: 96 | Y7: 9 | Z7: 87
A8: 2020-02-06 | B8: شوجن | C8: 110 | D8: 20 | E8: 90 | F8: 110 | G8: 15 | H8: 95 | I8: 60 | J8: 10 | K8: 50 | L8: 80 | M8: 30 | N8: 50 | O8: 100 | P8: 20 | Q8: 80 | R8: 15 | S8: 5 | T8: 10 | U8: 80 | V8: 10 | W8: 70 | X8: 115 | Y8: 13 | Z8: 102
A9: 2020-02-06 | B9: ابراهيم | C9: 170 | D9: 30 | E9: 140 | F9: 56 | G9: 6 | H9: 50 | I9: 66 | J9: 6 | K9: 60 | L9: 70 | M9: 20 | N9: 50 | O9: 120 | P9: 22 | Q9: 98 | R9: 90 | S9: 55 | T9: 35 | U9: 60 | V9: 20 | W9: 40 | X9: 136 | Y9: 36 | Z9: 100
A10: 2020-02-06 | B10: زنجير | C10: 180 | D10: 23 | E10: 157 | F10: 158 | G10: 13 | H10: 145 | I10: 68 | J10: 5 | K10: 63 | L10: 65 | M10: 15 | N10: 50 | O10: 110 | P10: 23 | Q10: 87 | R10: 150 | S10: 50 | T10: 100 | U10: 90 | V10: 65 | W10: 25 | X10: 168 | Y10: 68 | Z10: 100
A11: 2020-02-06 | B11: سلامه | C11: 190 | D11: 25 | E11: 165 | F11: 123 | G11: 23 | H11: 100 | I11: 180 | J11: 20 | K11: 160 | L11: 115 | M11: 15 | N11: 100 | O11: 140 | P11: 25 | Q11: 115 | R11: 200 | S11: 16 | T11: 184 | U11: 135 | V11: 35 | W11: 100 | X11: 85 | Y11: 15 | Z11: 70
A12: 2020-02-06 | B12: فهد | C12: 260 | D12: 15 | E12: 245 | F12: 125 | G12: 15 | H12: 110 | I12: 168 | J12: 25 | K12: 143 | L12: 90 | M12: 30 | N12: 60 | O12: 113 | P12: 26 | Q12: 87 | R12: 170 | S12: 50 | T12: 120 | U12: 60 | V12: 30 | W12: 30 | X12: 68 | Y12: 6 | Z12: 62
A13: 2020-02-06 | B13: كبير | C13: 220 | D13: 50 | E13: 170 | F13: 160 | G13: 50 | H13: 110 | I13: 136 | J13: 30 | K13: 106 | L13: 236 | M13: 36 | N13: 200 | O13: 115 | P13: 24 | Q13: 91 | R13: 136 | S13: 36 | T13: 100 | U13: 85 | V13: 25 | W13: 60 | X13: 65 | Y13: 6 | Z13: 59
A14: 2020-02-06 | B14: رفيق | C14: 80 | D14: 15 | E14: 65 | F14: 110 | G14: 10 | H14: 100 | I14: 190 | J14: 30 | K14: 160 | L14: 330 | M14: 100 | N14: 230 | O14: 160 | P14: 30 | Q14: 130 | R14: 23 | S14: 5 | T14: 18 | U14: 90 | V14: 30 | W14: 60 | X14: 80 | Y14: 10 | Z14: 70
A15: 2020-02-06 | B15: رضوان | C15: 165 | D15: 18 | E15: 147 | F15: 180 | G15: 80 | H15: 100 | I15: 90 | J15: 20 | K15: 70 | L15: 250 | M15: 50 | N15: 200 | O15: 180 | P15: 50 | Q15: 130 | R15: 50 | S15: 5 | T15: 45 | U15: 112 | V15: 12 | W15: 100 | X15: 98 | Y15: 9 | Z15: 89
A16: 2020-02-06 | B16: الشحات | C16: 190 | D16: 19 | E16: 171 | F16: 90 | G16: 10 | H16: 80 | I16: 99 | J16: 15 | K16: 84 | L16: 265 | M16: 65 | N16: 200 | O16: 170 | P16: 50 | Q16: 120 | R16: 90 | S16: 25 | T16: 65 | U16: 98 | V16: 8 | W16: 90 | X16: 85 | Y16: 5 | Z16: 80
A17: 2020-02-06 | B17: عالم جير | C17: 280 | D17: 80 | E17: 200 | F17: 99 | G17: 9 | H17: 90 | I17: 60 | J17: 26 | K17: 34 | L17: 200 | M17: 15 | N17: 185 | O17: 160 | P17: 40 | Q17: 120 | R17: 70 | S17: 50 | T17: 20 | U17: 65 | V17: 15 | W17: 50 | X17: 66 | Y17: 6 | Z17: 60
A18: 2020-02-06 | B18: يسرى | C18: 168 | D18: 18 | E18: 150 | F18: 96 | G18: 6 | H18: 90 | I18: 50 | J18: 24 | K18: 26 | L18: 180 | M18: 16 | N18: 164 | O18: 110 | P18: 10 | Q18: 100 | R18: 85 | S18: 25 | T18: 60 | U18: 66 | V18: 6 | W18: 60 | X18: 56 | Y18: 6 | Z18: 50
A19: 2020-02-06 | B19: حسن | C19: 125 | D19: 25 | E19: 100 | F19: 66 | G19: 8 | H19: 58 | I19: 55 | J19: 30 | K19: 25 | L19: 136 | M19: 19 | N19: 117 | O19: 165 | P19: 65 | Q19: 100 | R19: 98 | S19: 8 | T19: 90 | U19: 165 | V19: 65 | W19: 100 | X19: 178 | Y19: 78 | Z19: 100
A20: 2020-02-06 | B20: زين | C20: 136 | D20: 36 | E20: 100 | F20: 35 | G20: 3 | H20: 32 | I20: 90 | J20: 20 | K20: 70 | L20: 114 | M20: 14 | N20: 100 | O20: 140 | P20: 10 | Q20: 130 | R20: 56 | S20: 6 | T20: 50 | U20: 36 | V20: 3 | W20: 33 | X20: 165 | Y20: 65 | Z20: 100
B21: الاجمالى | C21: =SUM(C5:C20) -> 2714 | D21: =SUM(D5:D20) -> 534 | E21: =SUM(E5:E20) -> 2180 | F21: 1788 | G21: 303 | H21: 1485 | I21: 1712 | J21: 375 | K21: 1337 | L21: 2400 | M21: 478 | N21: 1922 | O21: 2252 | P21: 511 | Q21: 1741 | R21: 1331 | S21: 360 | T21: 971 | U21: 1492 | V21: 484 | W21: 1008 | X21: 1609 | Y21: 366 | Z21: 1243
B29: سجل البحث
B30: من
B31: الى
B32: المندوب
B33: 6جالون
B34: 5جالون
B35: ابيضpet
B36: 15لتر
B37: 3لتر
B38: 2لتر
B39: كاسات

Sheet 3
B1: ="تقرير المستودع عن شهر : "& TEXT($A$5,"m , yyyy") -> تقرير المستودع عن شهر : 3 , 2020
C2: الاصناف
A3: التاريخ | B3: المندوب | C3: Galon5 | F3: Galon6 | I3: White pet | L3: 15 Lit | O3: 5 lit | R3: 3 lit | U3: 2 lit | X3: Kasset
C4: تحميل | D4: مرتجع | E4: صافى | F4: تحميل | G4: مرتجع | H4: صافى | I4: تحميل | J4: مرتجع | K4: صافى | L4: تحميل | M4: مرتجع | N4: صافى | O4: تحميل | P4: مرتجع | Q4: صافى | R4: تحميل | S4: مرتجع | T4: صافى | U4: تحميل | V4: مرتجع | W4: صافى | X4: تحميل | Y4: مرتجع | Z4: صافى
A5: 2020-03-06 | B5: سيد | C5: 200 | D5: 50 | E5: =C5-D5 -> 150 | F5: 60 | G5: 20 | H5: =F5-G5 -> 40 | I5: 150 | J5: 60 | K5: =I5-J5 -> 90 | L5: 123 | M5: 75 | N5: =L5-M5 -> 48 | O5: 165 | P5: 50 | Q5: =O5-P5 -> 115 | R5: 60 | S5: 10 | T5: =R5-S5 -> 50 | U5: 150 | V5: 50 | W5: =U5-V5 -> 100 | X5: 100 | Y5: 20 | Z5: =X5-Y5 -> 80
A6: 2020-03-07 | B6: على | C6: 150 | D6: 50 | E6: =C6-D6 -> 100 | F6: 150 | G6: 25 | H6: =F6-G6 -> 125 | I6: 160 | J6: 28 | K6: =I6-J6 -> 132 | L6: 90 | M6: 20 | N6: =L6-M6 -> 70 | O6: 150 | P6: 12 | Q6: =O6-P6 -> 138 | R6: 15 | S6: 2 | T6: =R6-S6 -> 13 | U6: 110 | V6: 90 | W6: =U6-V6 -> 20 | X6: 48 | Y6: 14 | Z6: =X6-Y6 -> 34
A7: 2020-03-08 | B7: محمد | C7: 90 | D7: 10 | E7: 80 | F7: 170 | G7: 10 | H7: 160 | I7: 90 | J7: 26 | K7: 64 | L7: 56 | M7: 10 | N7: 46 | O7: 154 | P7: 54 | Q7: 100 | R7: 23 | S7: 12 | T7: 11 | U7: 90 | V7: 20 | W7: 70 | X7: 96 | Y7: 9 | Z7: 87
A8: 2020-03-09 | B8: شوجن | C8: 110 | D8: 20 | E8: 90 | F8: 110 | G8: 15 | H8: 95 | I8: 60 | J8: 10 | K8: 50 | L8: 80 | M8: 30 | N8: 50 | O8: 100 | P8: 20 | Q8: 80 | R8: 15 | S8: 5 | T8: 10 | U8: 80 | V8: 10 | W8: 70 | X8: 115 | Y8: 13 | Z8: 102
A9: 2020-03-10 | B9: ابراهيم | C9: 170 | D9: 30 | E9: 140 | F9: 56 | G9: 6 | H9: 50 | I9: 66 | J9: 6 | K9: 60 | L9: 70 | M9: 20 | N9: 50 | O9: 120 | P9: 22 | Q9: 98 | R9: 90 | S9: 55 | T9: 35 | U9: 60 | V9: 20 | W9: 40 | X9: 136 | Y9: 36 | Z9: 100
A10: 2020-02-06 | B10: زنجير | C10: 180 | D10: 23 | E10: 157 | F10: 158 | G10: 13 | H10: 145 | I10: 68 | J10: 5 | K10: 63 | L10: 65 | M10: 15 | N10: 50 | O10: 110 | P10: 23 | Q10: 87 | R10: 150 | S10: 50 | T10: 100 | U10: 90 | V10: 65 | W10: 25 | X10: 168 | Y10: 68 | Z10: 100
A11: 2020-02-06 | B11: سلامه | C11: 190 | D11: 25 | E11: 165 | F11: 123 | G11: 23 | H11: 100 | I11: 180 | J11: 20 | K11: 160 | L11: 115 | M11: 15 | N11: 100 | O11: 140 | P11: 25 | Q11: 115 | R11: 200 | S11: 16 | T11: 184 | U11: 135 | V11: 35 | W11: 100 | X11: 85 | Y11: 15 | Z11: 70
A12: 2020-02-06 | B12: فهد | C12: 260 | D12: 15 | E12: 245 | F12: 125 | G12: 15 | H12: 110 | I12: 168 | J12: 25 | K12: 143 | L12: 90 | M12: 30 | N12: 60 | O12: 113 | P12: 26 | Q12: 87 | R12: 170 | S12: 50 | T12: 120 | U12: 60 | V12: 30 | W12: 30 | X12: 68 | Y12: 6 | Z12: 62
A13: 2020-02-06 | B13: كبير | C13: 220 | D13: 50 | E13: 170 | F13: 160 | G13: 50 | H13: 110 | I13: 136 | J13: 30 | K13: 106 | L13: 236 | M13: 36 | N13: 200 | O13: 115 | P13: 24 | Q13: 91 | R13: 136 | S13: 36 | T13: 100 | U13: 85 | V13: 25 | W13: 60 | X13: 65 | Y13: 6 | Z13: 59
A14: 2020-02-06 | B14: رفيق | C14: 80 | D14: 15 | E14: 65 | F14: 110 | G14: 10 | H14: 100 | I14: 190 | J14: 30 | K14: 160 | L14: 330 | M14: 100 | N14: 230 | O14: 160 | P14: 30 | Q14: 130 | R14: 23 | S14: 5 | T14: 18 | U14: 90 | V14: 30 | W14: 60 | X14: 80 | Y14: 10 | Z14: 70
A15: 2020-02-06 | B15: رضوان | C15: 165 | D15: 18 | E15: 147 | F15: 180 | G15: 80 | H15: 100 | I15: 90 | J15: 20 | K15: 70 | L15: 250 | M15: 50 | N15: 200 | O15: 180 | P15: 50 | Q15: 130 | R15: 50 | S15: 5 | T15: 45 | U15: 112 | V15: 12 | W15: 100 | X15: 98 | Y15: 9 | Z15: 89
A16: 2020-02-06 | B16: الشحات | C16: 190 | D16: 19 | E16: 171 | F16: 90 | G16: 10 | H16: 80 | I16: 99 | J16: 15 | K16: 84 | L16: 265 | M16: 65 | N16: 200 | O16: 170 | P16: 50 | Q16: 120 | R16: 90 | S16: 25 | T16: 65 | U16: 98 | V16: 8 | W16: 90 | X16: 85 | Y16: 5 | Z16: 80
A17: 2020-02-06 | B17: عالم جير | C17: 280 | D17: 80 | E17: 200 | F17: 99 | G17: 9 | H17: 90 | I17: 60 | J17: 26 | K17: 34 | L17: 200 | M17: 15 | N17: 185 | O17: 160 | P17: 40 | Q17: 120 | R17: 70 | S17: 50 | T17: 20 | U17: 65 | V17: 15 | W17: 50 | X17: 66 | Y17: 6 | Z17: 60
A18: 2020-02-06 | B18: يسرى | C18: 168 | D18: 18 | E18: 150 | F18: 96 | G18: 6 | H18: 90 | I18: 50 | J18: 24 | K18: 26 | L18: 180 | M18: 16 | N18: 164 | O18: 110 | P18: 10 | Q18: 100 | R18: 85 | S18: 25 | T18: 60 | U18: 66 | V18: 6 | W18: 60 | X18: 56 | Y18: 6 | Z18: 50
A19: 2020-02-06 | B19: حسن | C19: 125 | D19: 25 | E19: 100 | F19: 66 | G19: 8 | H19: 58 | I19: 55 | J19: 30 | K19: 25 | L19: 136 | M19: 19 | N19: 117 | O19: 165 | P19: 65 | Q19: 100 | R19: 98 | S19: 8 | T19: 90 | U19: 165 | V19: 65 | W19: 100 | X19: 178 | Y19: 78 | Z19: 100
A20: 2020-02-06 | B20: زين | C20: 136 | D20: 36 | E20: 100 | F20: 35 | G20: 3 | H20: 32 | I20: 90 | J20: 20 | K20: 70 | L20: 114 | M20: 14 | N20: 100 | O20: 140 | P20: 10 | Q20: 130 | R20: 56 | S20: 6 | T20: 50 | U20: 36 | V20: 3 | W20: 33 | X20: 165 | Y20: 65 | Z20: 100
B21: الاجمالى | C21: =SUM(C5:C20) -> 2714 | D21: =SUM(D5:D20) -> 484 | E21: =SUM(E5:E20) -> 2230 | F21: 1788 | G21: 303 | H21: 1485 | I21: 1712 | J21: 375 | K21: 1337 | L21: 2400 | M21: 530 | N21: 1870 | O21: 2252 | P21: 511 | Q21: 1741 | R21: 1331 | S21: 360 | T21: 971 | U21: 1492 | V21: 484 | W21: 1008 | X21: 1609 | Y21: 366 | Z21: 1243
B29: سجل البحث
B30: من
B31: الى
B32: المندوب
B33: 6جالون
B34: 5جالون
B35: ابيضpet
B36: 15لتر
B37: 3لتر
B38: 2لتر
B39: كاسات

Sheet 4
B1: ="تقرير المستودع عن شهر : "& TEXT($A$5,"m , yyyy") -> تقرير المستودع عن شهر : 4 , 2020
C2: الاصناف
A3: التاريخ | B3: المندوب | C3: Galon5 | F3: Galon6 | I3: White pet | L3: 15 Lit | O3: 5 lit | R3: 3 lit | U3: 2 lit | X3: Kasset
C4: تحميل | D4: مرتجع | E4: صافى | F4: تحميل | G4: مرتجع | H4: صافى | I4: تحميل | J4: مرتجع | K4: صافى | L4: تحميل | M4: مرتجع | N4: صافى | O4: تحميل | P4: مرتجع | Q4: صافى | R4: تحميل | S4: مرتجع | T4: صافى | U4: تحميل | V4: مرتجع | W4: صافى | X4: تحميل | Y4: مرتجع | Z4: صافى
A5: 2020-04-06 | B5: سيد | C5: 200 | D5: 70 | E5: =C5-D5 -> 130 | F5: 60 | G5: 20 | H5: =F5-G5 -> 40 | I5: 150 | J5: 60 | K5: =I5-J5 -> 90 | L5: 123 | M5: 23 | N5: =L5-M5 -> 100 | O5: 165 | P5: 50 | Q5: =O5-P5 -> 115 | R5: 60 | S5: 10 | T5: =R5-S5 -> 50 | U5: 150 | V5: 50 | W5: =U5-V5 -> 100 | X5: 100 | Y5: 20 | Z5: =X5-Y5 -> 80
A6: 2020-04-07 | B6: على | C6: 150 | D6: 50 | E6: 100 | F6: 150 | G6: 25 | H6: =F6-G6 -> 125 | I6: 160 | J6: 28 | K6: =I6-J6 -> 132 | L6: 90 | M6: 20 | N6: =L6-M6 -> 70 | O6: 150 | P6: 12 | Q6: =O6-P6 -> 138 | R6: 15 | S6: 2 | T6: =R6-S6 -> 13 | U6: 110 | V6: 90 | W6: =U6-V6 -> 20 | X6: 48 | Y6: 14 | Z6: =X6-Y6 -> 34
A7: 2020-04-08 | B7: محمد | C7: 90 | D7: 10 | E7: 80 | F7: 170 | G7: 10 | H7: 160 | I7: 90 | J7: 26 | K7: 64 | L7: 56 | M7: 10 | N7: 46 | O7: 154 | P7: 54 | Q7: 100 | R7: 23 | S7: 12 | T7: 11 | U7: 90 | V7: 20 | W7: 70 | X7: 96 | Y7: 9 | Z7: 87
A8: 2020-04-09 | B8: شوجن | C8: 110 | D8: 20 | E8: 90 | F8: 110 | G8: 15 | H8: 95 | I8: 60 | J8: 10 | K8: 50 | L8: 80 | M8: 30 | N8: 50 | O8: 100 | P8: 20 | Q8: 80 | R8: 15 | S8: 5 | T8: 10 | U8: 80 | V8: 10 | W8: 70 | X8: 115 | Y8: 13 | Z8: 102
A9: 2020-04-10 | B9: ابراهيم | C9: 170 | D9: 30 | E9: 140 | F9: 56 | G9: 6 | H9: 50 | I9: 66 | J9: 6 | K9: 60 | L9: 70 | M9: 20 | N9: 50 | O9: 120 | P9: 22 | Q9: 98 | R9: 90 | S9: 55 | T9: 35 | U9: 60 | V9: 20 | W9: 40 | X9: 136 | Y9: 36 | Z9: 100
A10: 2020-04-11 | B10: زنجير | C10: 180 | D10: 23 | E10: 157 | F10: 158 | G10: 13 | H10: 145 | I10: 68 | J10: 5 | K10: 63 | L10: 65 | M10: 15 | N10: 50 | O10: 110 | P10: 23 | Q10: 87 | R10: 150 | S10: 50 | T10: 100 | U10: 90 | V10: 65 | W10: 25 | X10: 168 | Y10: 68 | Z10: 100
A11: 2020-04-12 | B11: سلامه | C11: 190 | D11: 25 | E11: 165 | F11: 123 | G11: 23 | H11: 100 | I11: 180 | J11: 20 | K11: 160 | L11: 115 | M11: 15 | N11: 100 | O11: 140 | P11: 25 | Q11: 115 | R11: 200 | S11: 16 | T11: 184 | U11: 135 | V11: 35 | W11: 100 | X11: 85 | Y11: 15 | Z11: 70
A12: 2020-04-13 | B12: فهد | C12: 260 | D12: 15 | E12: 245 | F12: 125 | G12: 15 | H12: 110 | I12: 168 | J12: 25 | K12: 143 | L12: 90 | M12: 30 | N12: 60 | O12: 113 | P12: 26 | Q12: 87 | R12: 170 | S12: 50 | T12: 120 | U12: 60 | V12: 30 | W12: 30 | X12: 68 | Y12: 6 | Z12: 62
A13: 2020-04-14 | B13: كبير | C13: 220 | D13: 50 | E13: 170 | F13: 160 | G13: 50 | H13: 110 | I13: 136 | J13: 30 | K13: 106 | L13: 236 | M13: 36 | N13: 200 | O13: 115 | P13: 24 | Q13: 91 | R13: 136 | S13: 36 | T13: 100 | U13: 85 | V13: 25 | W13: 60 | X13: 65 | Y13: 6 | Z13: 59
A14: 2020-04-15 | B14: رفيق | C14: 80 | D14: 15 | E14: 65 | F14: 110 | G14: 10 | H14: 100 | I14: 190 | J14: 30 | K14: 160 | L14: 330 | M14: 100 | N14: 230 | O14: 160 | P14: 30 | Q14: 130 | R14: 23 | S14: 5 | T14: 18 | U14: 90 | V14: 30 | W14: 60 | X14: 80 | Y14: 10 | Z14: 70
A15: 2020-04-16 | B15: رضوان | C15: 165 | D15: 18 | E15: 147 | F15: 180 | G15: 80 | H15: 100 | I15: 90 | J15: 20 | K15: 70 | L15: 250 | M15: 50 | N15: 200 | O15: 180 | P15: 50 | Q15: 130 | R15: 50 | S15: 5 | T15: 45 | U15: 112 | V15: 12 | W15: 100 | X15: 98 | Y15: 9 | Z15: 89
A16: 2020-04-17 | B16: الشحات | C16: 190 | D16: 19 | E16: 171 | F16: 90 | G16: 10 | H16: 80 | I16: 99 | J16: 15 | K16: 84 | L16: 265 | M16: 65 | N16: 200 | O16: 170 | P16: 50 | Q16: 120 | R16: 90 | S16: 25 | T16: 65 | U16: 98 | V16: 8 | W16: 90 | X16: 85 | Y16: 5 | Z16: 80
A17: 2020-04-18 | B17: عالم جير | C17: 280 | D17: 80 | E17: 200 | F17: 99 | G17: 9 | H17: 90 | I17: 60 | J17: 26 | K17: 34 | L17: 200 | M17: 15 | N17: 185 | O17: 160 | P17: 40 | Q17: 120 | R17: 70 | S17: 50 | T17: 20 | U17: 65 | V17: 15 | W17: 50 | X17: 66 | Y17: 6 | Z17: 60
A18: 2020-04-19 | B18: يسرى | C18: 168 | D18: 18 | E18: 150 | F18: 96 | G18: 6 | H18: 90 | I18: 50 | J18: 24 | K18: 26 | L18: 180 | M18: 16 | N18: 164 | O18: 110 | P18: 10 | Q18: 100 | R18: 85 | S18: 25 | T18: 60 | U18: 66 | V18: 6 | W18: 60 | X18: 56 | Y18: 6 | Z18: 50
A19: 2020-04-20 | B19: حسن | C19: 125 | D19: 25 | E19: 100 | F19: 66 | G19: 8 | H19: 58 | I19: 55 | J19: 30 | K19: 25 | L19: 136 | M19: 19 | N19: 117 | O19: 165 | P19: 65 | Q19: 100 | R19: 98 | S19: 8 | T19: 90 | U19: 165 | V19: 65 | W19: 100 | X19: 178 | Y19: 78 | Z19: 100
A20: 2020-04-21 | B20: زين | C20: 136 | D20: 36 | E20: 100 | F20: 35 | G20: 3 | H20: 32 | I20: 90 | J20: 20 | K20: 70 | L20: 114 | M20: 14 | N20: 100 | O20: 140 | P20: 10 | Q20: 130 | R20: 56 | S20: 6 | T20: 50 | U20: 36 | V20: 3 | W20: 33 | X20: 165 | Y20: 65 | Z20: 100
B21: الاجمالى | C21: =SUM(C5:C20) -> 2714 | D21: =SUM(D5:D20) -> 504 | E21: =SUM(E5:E20) -> 2210 | F21: 1788 | G21: 303 | H21: 1485 | I21: 1712 | J21: 375 | K21: 1337 | L21: 2400 | M21: 478 | N21: 1922 | O21: 2252 | P21: 511 | Q21: 1741 | R21: 1331 | S21: 360 | T21: 971 | U21: 1492 | V21: 484 | W21: 1008 | X21: 1609 | Y21: 366 | Z21: 1243
B29: سجل البحث
B30: من
B31: الى
B32: المندوب
B33: 6جالون
B34: 5جالون
B35: ابيضpet
B36: 15لتر
B37: 3لتر
B38: 2لتر
B39: كاسات

Sheet 5
B1: ="تقرير المستودع عن شهر : "& TEXT($A$5,"m , yyyy") -> تقرير المستودع عن شهر : 5 , 2020
C2: الاصناف
A3: التاريخ | B3: المندوب | C3: Galon5 | F3: Galon6 | I3: White pet | L3: 15 Lit | O3: 5 lit | R3: 3 lit | U3: 2 lit | X3: Kasset
C4: تحميل | D4: مرتجع | E4: صافى | F4: تحميل | G4: مرتجع | H4: صافى | I4: تحميل | J4: مرتجع | K4: صافى | L4: تحميل | M4: مرتجع | N4: صافى | O4: تحميل | P4: مرتجع | Q4: صافى | R4: تحميل | S4: مرتجع | T4: صافى | U4: تحميل | V4: مرتجع | W4: صافى | X4: تحميل | Y4: مرتجع | Z4: صافى
A5: 2020-05-06 | B5: سيد | C5: 200 | D5: 100 | E5: =C5-D5 -> 100 | F5: 60 | G5: 20 | H5: =F5-G5 -> 40 | I5: 150 | J5: 60 | K5: =I5-J5 -> 90 | L5: 123 | M5: 23 | N5: =L5-M5 -> 100 | O5: 165 | P5: 50 | Q5: =O5-P5 -> 115 | R5: 60 | S5: 10 | T5: =R5-S5 -> 50 | U5: 150 | V5: 50 | W5: =U5-V5 -> 100 | X5: 100 | Y5: 20 | Z5: =X5-Y5 -> 80
A6: 2020-05-07 | B6: على | C6: 150 | D6: 50 | E6: =C6-D6 -> 100 | F6: 150 | G6: 25 | H6: =F6-G6 -> 125 | I6: 160 | J6: 28 | K6: =I6-J6 -> 132 | L6: 90 | M6: 20 | N6: =L6-M6 -> 70 | O6: 150 | P6: 12 | Q6: =O6-P6 -> 138 | R6: 15 | S6: 2 | T6: =R6-S6 -> 13 | U6: 110 | V6: 90 | W6: =U6-V6 -> 20 | X6: 48 | Y6: 14 | Z6: =X6-Y6 -> 34
A7: 2020-05-08 | B7: محمد | C7: 90 | D7: 10 | E7: 80 | F7: 170 | G7: 10 | H7: 160 | I7: 90 | J7: 26 | K7: 64 | L7: 56 | M7: 10 | N7: 46 | O7: 154 | P7: 54 | Q7: 100 | R7: 23 | S7: 12 | T7: 11 | U7: 90 | V7: 20 | W7: 70 | X7: 96 | Y7: 9 | Z7: 87
A8: 2020-05-09 | B8: شوجن | C8: 110 | D8: 20 | E8: 90 | F8: 110 | G8: 15 | H8: 95 | I8: 60 | J8: 10 | K8: 50 | L8: 80 | M8: 30 | N8: 50 | O8: 100 | P8: 20 | Q8: 80 | R8: 15 | S8: 5 | T8: 10 | U8: 80 | V8: 10 | W8: 70 | X8: 115 | Y8: 13 | Z8: 102
A9: 2020-05-10 | B9: ابراهيم | C9: 170 | D9: 30 | E9: 140 | F9: 56 | G9: 6 | H9: 50 | I9: 66 | J9: 6 | K9: 60 | L9: 70 | M9: 20 | N9: 50 | O9: 120 | P9: 22 | Q9: 98 | R9: 90 | S9: 55 | T9: 35 | U9: 60 | V9: 20 | W9: 40 | X9: 136 | Y9: 36 | Z9: 100
A10: 2020-05-11 | B10: زنجير | C10: 180 | D10: 23 | E10: 157 | F10: 158 | G10: 13 | H10: 145 | I10: 68 | J10: 5 | K10: 63 | L10: 65 | M10: 15 | N10: 50 | O10: 110 | P10: 23 | Q10: 87 | R10: 150 | S10: 50 | T10: 100 | U10: 90 | V10: 65 | W10: 25 | X10: 168 | Y10: 68 | Z10: 100
A11: 2020-05-12 | B11: سلامه | C11: 190 | D11: 25 | E11: 165 | F11: 123 | G11: 23 | H11: 100 | I11: 180 | J11: 20 | K11: 160 | L11: 115 | M11: 15 | N11: 100 | O11: 140 | P11: 25 | Q11: 115 | R11: 200 | S11: 16 | T11: 184 | U11: 135 | V11: 35 | W11: 100 | X11: 85 | Y11: 15 | Z11: 70
A12: 2020-05-13 | B12: فهد | C12: 260 | D12: 15 | E12: 245 | F12: 125 | G12: 15 | H12: 110 | I12: 168 | J12: 25 | K12: 143 | L12: 90 | M12: 30 | N12: 60 | O12: 113 | P12: 26 | Q12: 87 | R12: 170 | S12: 50 | T12: 120 | U12: 60 | V12: 30 | W12: 30 | X12: 68 | Y12: 6 | Z12: 62
A13: 2020-05-14 | B13: كبير | C13: 220 | D13: 50 | E13: 170 | F13: 160 | G13: 50 | H13: 110 | I13: 136 | J13: 30 | K13: 106 | L13: 236 | M13: 36 | N13: 200 | O13: 115 | P13: 24 | Q13: 91 | R13: 136 | S13: 36 | T13: 100 | U13: 85 | V13: 25 | W13: 60 | X13: 65 | Y13: 6 | Z13: 59
A14: 2020-05-15 | B14: رفيق | C14: 80 | D14: 15 | E14: 65 | F14: 110 | G14: 10 | H14: 100 | I14: 190 | J14: 30 | K14: 160 | L14: 330 | M14: 100 | N14: 230 | O14: 160 | P14: 30 | Q14: 130 | R14: 23 | S14: 5 | T14: 18 | U14: 90 | V14: 30 | W14: 60 | X14: 80 | Y14: 10 | Z14: 70
A15: 2020-05-16 | B15: رضوان | C15: 165 | D15: 18 | E15: 147 | F15: 180 | G15: 80 | H15: 100 | I15: 90 | J15: 20 | K15: 70 | L15: 250 | M15: 50 | N15: 200 | O15: 180 | P15: 50 | Q15: 130 | R15: 50 | S15: 5 | T15: 45 | U15: 112 | V15: 12 | W15: 100 | X15: 98 | Y15: 9 | Z15: 89
A16: 2020-05-17 | B16: الشحات | C16: 190 | D16: 19 | E16: 171 | F16: 90 | G16: 10 | H16: 80 | I16: 99 | J16: 15 | K16: 84 | L16: 265 | M16: 65 | N16: 200 | O16: 170 | P16: 50 | Q16: 120 | R16: 90 | S16: 25 | T16: 65 | U16: 98 | V16: 8 | W16: 90 | X16: 85 | Y16: 5 | Z16: 80
A17: 2020-05-18 | B17: عالم جير | C17: 280 | D17: 80 | E17: 200 | F17: 99 | G17: 9 | H17: 90 | I17: 60 | J17: 26 | K17: 34 | L17: 200 | M17: 15 | N17: 185 | O17: 160 | P17: 40 | Q17: 120 | R17: 70 | S17: 50 | T17: 20 | U17: 65 | V17: 15 | W17: 50 | X17: 66 | Y17: 6 | Z17: 60
A18: 2020-05-19 | B18: يسرى | C18: 168 | D18: 18 | E18: 150 | F18: 96 | G18: 6 | H18: 90 | I18: 50 | J18: 24 | K18: 26 | L18: 180 | M18: 16 | N18: 164 | O18: 110 | P18: 10 | Q18: 100 | R18: 85 | S18: 25 | T18: 60 | U18: 66 | V18: 6 | W18: 60 | X18: 56 | Y18: 6 | Z18: 50
A19: 2020-05-20 | B19: حسن | C19: 125 | D19: 25 | E19: 100 | F19: 66 | G19: 8 | H19: 58 | I19: 55 | J19: 30 | K19: 25 | L19: 136 | M19: 19 | N19: 117 | O19: 165 | P19: 65 | Q19: 100 | R19: 98 | S19: 8 | T19: 90 | U19: 165 | V19: 65 | W19: 100 | X19: 178 | Y19: 78 | Z19: 100
A20: 2020-05-21 | B20: زين | C20: 136 | D20: 36 | E20: 100 | F20: 35 | G20: 3 | H20: 32 | I20: 90 | J20: 20 | K20: 70 | L20: 114 | M20: 14 | N20: 100 | O20: 140 | P20: 10 | Q20: 130 | R20: 56 | S20: 6 | T20: 50 | U20: 36 | V20: 3 | W20: 33 | X20: 165 | Y20: 65 | Z20: 100
B21: الاجمالى | C21: =SUM(C5:C20) -> 2714 | D21: =SUM(D5:D20) -> 534 | E21: =SUM(E5:E20) -> 2180 | F21: 1788 | G21: 303 | H21: 1485 | I21: 1712 | J21: 375 | K21: 1337 | L21: 2400 | M21: 478 | N21: 1922 | O21: 2252 | P21: 511 | Q21: 1741 | R21: 1331 | S21: 360 | T21: 971 | U21: 1492 | V21: 484 | W21: 1008 | X21: 1609 | Y21: 366 | Z21: 1243
B29: سجل البحث
B30: من
B31: الى
B32: المندوب
B33: 6جالون
B34: 5جالون
B35: ابيضpet
B36: 15لتر
B37: 3لتر
B38: 2لتر
B39: كاسات

Sheet 6
B1: ="تقرير المستودع عن شهر : "& TEXT($A$5,"m , yyyy") -> تقرير المستودع عن شهر : 6 , 2020
C2: الاصناف
A3: التاريخ | B3: المندوب | C3: Galon5 | F3: Galon6 | I3: White pet | L3: 15 Lit | O3: 5 lit | R3: 3 lit | U3: 2 lit | X3: Kasset
C4: تحميل | D4: مرتجع | E4: صافى | F4: تحميل | G4: مرتجع | H4: صافى | I4: تحميل | J4: مرتجع | K4: صافى | L4: تحميل | M4: مرتجع | N4: صافى | O4: تحميل | P4: مرتجع | Q4: صافى | R4: تحميل | S4: مرتجع | T4: صافى | U4: تحميل | V4: مرتجع | W4: صافى | X4: تحميل | Y4: مرتجع | Z4: صافى
A5: 2020-06-06 | B5: سيد | C5: 200 | D5: 50 | E5: =C5-D5 -> 150 | F5: 60 | G5: 20 | H5: =F5-G5 -> 40 | I5: 150 | J5: 60 | K5: =I5-J5 -> 90 | L5: 123 | M5: 75 | N5: =L5-M5 -> 48 | O5: 165 | P5: 50 | Q5: =O5-P5 -> 115 | R5: 60 | S5: 10 | T5: =R5-S5 -> 50 | U5: 150 | V5: 50 | W5: =U5-V5 -> 100 | X5: 100 | Y5: 20 | Z5: =X5-Y5 -> 80
A6: 2020-06-07 | B6: على | C6: 150 | D6: 50 | E6: =C6-D6 -> 100 | F6: 150 | G6: 25 | H6: =F6-G6 -> 125 | I6: 160 | J6: 28 | K6: =I6-J6 -> 132 | L6: 90 | M6: 20 | N6: =L6-M6 -> 70 | O6: 150 | P6: 12 | Q6: =O6-P6 -> 138 | R6: 15 | S6: 2 | T6: =R6-S6 -> 13 | U6: 110 | V6: 90 | W6: =U6-V6 -> 20 | X6: 48 | Y6: 14 | Z6: =X6-Y6 -> 34
A7: 2020-06-08 | B7: محمد | C7: 90 | D7: 10 | E7: 80 | F7: 170 | G7: 10 | H7: 160 | I7: 90 | J7: 26 | K7: 64 | L7: 56 | M7: 10 | N7: 46 | O7: 154 | P7: 54 | Q7: 100 | R7: 23 | S7: 12 | T7: 11 | U7: 90 | V7: 20 | W7: 70 | X7: 96 | Y7: 9 | Z7: 87
A8: 2020-06-09 | B8: شوجن | C8: 110 | D8: 20 | E8: 90 | F8: 110 | G8: 15 | H8: 95 | I8: 60 | J8: 10 | K8: 50 | L8: 80 | M8: 30 | N8: 50 | O8: 100 | P8: 20 | Q8: 80 | R8: 15 | S8: 5 | T8: 10 | U8: 80 | V8: 10 | W8: 70 | X8: 115 | Y8: 13 | Z8: 102
A9: 2020-06-10 | B9: ابراهيم | C9: 170 | D9: 30 | E9: 140 | F9: 56 | G9: 6 | H9: 50 | I9: 66 | J9: 6 | K9: 60 | L9: 70 | M9: 20 | N9: 50 | O9: 120 | P9: 22 | Q9: 98 | R9: 90 | S9: 55 | T9: 35 | U9: 60 | V9: 20 | W9: 40 | X9: 136 | Y9: 36 | Z9: 100
A10: 2020-06-11 | B10: زنجير | C10: 180 | D10: 23 | E10: 157 | F10: 158 | G10: 13 | H10: 145 | I10: 68 | J10: 5 | K10: 63 | L10: 65 | M10: 15 | N10: 50 | O10: 110 | P10: 23 | Q10: 87 | R10: 150 | S10: 50 | T10: 100 | U10: 90 | V10: 65 | W10: 25 | X10: 168 | Y10: 68 | Z10: 100
A11: 2020-06-12 | B11: سلامه | C11: 190 | D11: 25 | E11: 165 | F11: 123 | G11: 23 | H11: 100 | I11: 180 | J11: 20 | K11: 160 | L11: 115 | M11: 15 | N11: 100 | O11: 140 | P11: 25 | Q11: 115 | R11: 200 | S11: 16 | T11: 184 | U11: 135 | V11: 35 | W11: 100 | X11: 85 | Y11: 15 | Z11: 70
A12: 2020-06-13 | B12: فهد | C12: 260 | D12: 15 | E12: 245 | F12: 125 | G12: 15 | H12: 110 | I12: 168 | J12: 25 | K12: 143 | L12: 90 | M12: 30 | N12: 60 | O12: 113 | P12: 26 | Q12: 87 | R12: 170 | S12: 50 | T12: 120 | U12: 60 | V12: 30 | W12: 30 | X12: 68 | Y12: 6 | Z12: 62
A13: 2020-06-14 | B13: كبير | C13: 220 | D13: 50 | E13: 170 | F13: 160 | G13: 50 | H13: 110 | I13: 136 | J13: 30 | K13: 106 | L13: 236 | M13: 36 | N13: 200 | O13: 115 | P13: 24 | Q13: 91 | R13: 136 | S13: 36 | T13: 100 | U13: 85 | V13: 25 | W13: 60 | X13: 65 | Y13: 6 | Z13: 59
A14: 2020-06-15 | B14: رفيق | C14: 80 | D14: 15 | E14: 65 | F14: 110 | G14: 10 | H14: 100 | I14: 190 | J14: 30 | K14: 160 | L14: 330 | M14: 100 | N14: 230 | O14: 160 | P14: 30 | Q14: 130 | R14: 23 | S14: 5 | T14: 18 | U14: 90 | V14: 30 | W14: 60 | X14: 80 | Y14: 10 | Z14: 70
A15: 2020-06-16 | B15: رضوان | C15: 165 | D15: 18 | E15: 147 | F15: 180 | G15: 80 | H15: 100 | I15: 90 | J15: 20 | K15: 70 | L15: 250 | M15: 50 | N15: 200 | O15: 180 | P15: 50 | Q15: 130 | R15: 50 | S15: 5 | T15: 45 | U15: 112 | V15: 12 | W15: 100 | X15: 98 | Y15: 9 | Z15: 89
A16: 2020-06-17 | B16: الشحات | C16: 190 | D16: 19 | E16: 171 | F16: 90 | G16: 10 | H16: 80 | I16: 99 | J16: 15 | K16: 84 | L16: 265 | M16: 65 | N16: 200 | O16: 170 | P16: 50 | Q16: 120 | R16: 90 | S16: 25 | T16: 65 | U16: 98 | V16: 8 | W16: 90 | X16: 85 | Y16: 5 | Z16: 80
A17: 2020-06-18 | B17: عالم جير | C17: 280 | D17: 80 | E17: 200 | F17: 99 | G17: 9 | H17: 90 | I17: 60 | J17: 26 | K17: 34 | L17: 200 | M17: 15 | N17: 185 | O17: 160 | P17: 40 | Q17: 120 | R17: 70 | S17: 50 | T17: 20 | U17: 65 | V17: 15 | W17: 50 | X17: 66 | Y17: 6 | Z17: 60
A18: 2020-06-19 | B18: يسرى | C18: 168 | D18: 18 | E18: 150 | F18: 96 | G18: 6 | H18: 90 | I18: 50 | J18: 24 | K18: 26 | L18: 180 | M18: 16 | N18: 164 | O18: 110 | P18: 10 | Q18: 100 | R18: 85 | S18: 25 | T18: 60 | U18: 66 | V18: 6 | W18: 60 | X18: 56 | Y18: 6 | Z18: 50
A19: 2020-06-20 | B19: حسن | C19: 125 | D19: 25 | E19: 100 | F19: 66 | G19: 8 | H19: 58 | I19: 55 | J19: 30 | K19: 25 | L19: 136 | M19: 19 | N19: 117 | O19: 165 | P19: 65 | Q19: 100 | R19: 98 | S19: 8 | T19: 90 | U19: 165 | V19: 65 | W19: 100 | X19: 178 | Y19: 78 | Z19: 100
A20: 2020-06-21 | B20: زين | C20: 136 | D20: 36 | E20: 100 | F20: 35 | G20: 3 | H20: 32 | I20: 90 | J20: 20 | K20: 70 | L20: 114 | M20: 14 | N20: 100 | O20: 140 | P20: 10 | Q20: 130 | R20: 56 | S20: 6 | T20: 50 | U20: 36 | V20: 3 | W20: 33 | X20: 165 | Y20: 65 | Z20: 100
B21: الاجمالى | C21: =SUM(C5:C20) -> 2714 | D21: =SUM(D5:D20) -> 484 | E21: =SUM(E5:E20) -> 2230 | F21: 1788 | G21: 303 | H21: 1485 | I21: 1712 | J21: 375 | K21: 1337 | L21: 2400 | M21: 530 | N21: 1870 | O21: 2252 | P21: 511 | Q21: 1741 | R21: 1331 | S21: 360 | T21: 971 | U21: 1492 | V21: 484 | W21: 1008 | X21: 1609 | Y21: 366 | Z21: 1243
B29: سجل البحث
B30: من
B31: الى
B32: المندوب
B33: 6جالون
B34: 5جالون
B35: ابيضpet
B36: 15لتر
B37: 3لتر
B38: 2لتر
B39: كاسات

Sheet 7
B1: ="تقرير المستودع عن شهر : "& TEXT($A$5,"m , yyyy") -> تقرير المستودع عن شهر : 7 , 2020
C2: الاصناف
A3: التاريخ | B3: المندوب | C3: Galon5 | F3: Galon6 | I3: White pet | L3: 15 Lit | O3: 5 lit | R3: 3 lit | U3: 2 lit | X3: Kasset
C4: تحميل | D4: مرتجع | E4: صافى | F4: تحميل | G4: مرتجع | H4: صافى | I4: تحميل | J4: مرتجع | K4: صافى | L4: تحميل | M4: مرتجع | N4: صافى | O4: تحميل | P4: مرتجع | Q4: صافى | R4: تحميل | S4: مرتجع | T4: صافى | U4: تحميل | V4: مرتجع | W4: صافى | X4: تحميل | Y4: مرتجع | Z4: صافى
A5: 2020-07-06 | B5: سيد | C5: 200 | D5: 100 | E5: =C5-D5 -> 100 | F5: 60 | G5: 20 | H5: =F5-G5 -> 40 | I5: 150 | J5: 60 | K5: =I5-J5 -> 90 | L5: 123 | M5: 23 | N5: =L5-M5 -> 100 | O5: 165 | P5: 50 | Q5: =O5-P5 -> 115 | R5: 60 | S5: 10 | T5: =R5-S5 -> 50 | U5: 150 | V5: 50 | W5: =U5-V5 -> 100 | X5: 100 | Y5: 20 | Z5: =X5-Y5 -> 80
A6: 2020-07-07 | B6: على | C6: 150 | D6: 50 | E6: =C6-D6 -> 100 | F6: 150 | G6: 25 | H6: =F6-G6 -> 125 | I6: 160 | J6: 28 | K6: =I6-J6 -> 132 | L6: 90 | M6: 20 | N6: =L6-M6 -> 70 | O6: 150 | P6: 12 | Q6: =O6-P6 -> 138 | R6: 15 | S6: 2 | T6: =R6-S6 -> 13 | U6: 110 | V6: 90 | W6: =U6-V6 -> 20 | X6: 48 | Y6: 14 | Z6: =X6-Y6 -> 34
A7: 2020-07-08 | B7: محمد | C7: 90 | D7: 10 | E7: 80 | F7: 170 | G7: 10 | H7: 160 | I7: 90 | J7: 26 | K7: 64 | L7: 56 | M7: 10 | N7: 46 | O7: 154 | P7: 54 | Q7: 100 | R7: 23 | S7: 12 | T7: 11 | U7: 90 | V7: 20 | W7: 70 | X7: 96 | Y7: 9 | Z7: 87
A8: 2020-07-09 | B8: شوجن | C8: 110 | D8: 20 | E8: 90 | F8: 110 | G8: 15 | H8: 95 | I8: 60 | J8: 10 | K8: 50 | L8: 80 | M8: 30 | N8: 50 | O8: 100 | P8: 20 | Q8: 80 | R8: 15 | S8: 5 | T8: 10 | U8: 80 | V8: 10 | W8: 70 | X8: 115 | Y8: 13 | Z8: 102
A9: 2020-07-10 | B9: ابراهيم | C9: 170 | D9: 30 | E9: 140 | F9: 56 | G9: 6 | H9: 50 | I9: 66 | J9: 6 | K9: 60 | L9: 70 | M9: 20 | N9: 50 | O9: 120 | P9: 22 | Q9: 98 | R9: 90 | S9: 55 | T9: 35 | U9: 60 | V9: 20 | W9: 40 | X9: 136 | Y9: 36 | Z9: 100
A10: 2020-07-11 | B10: زنجير | C10: 180 | D10: 23 | E10: 157 | F10: 158 | G10: 13 | H10: 145 | I10: 68 | J10: 5 | K10: 63 | L10: 65 | M10: 15 | N10: 50 | O10: 110 | P10: 23 | Q10: 87 | R10: 150 | S10: 50 | T10: 100 | U10: 90 | V10: 65 | W10: 25 | X10: 168 | Y10: 68 | Z10: 100
A11: 2020-07-12 | B11: سلامه | C11: 190 | D11: 25 | E11: 165 | F11: 123 | G11: 23 | H11: 100 | I11: 180 | J11: 20 | K11: 160 | L11: 115 | M11: 15 | N11: 100 | O11: 140 | P11: 25 | Q11: 115 | R11: 200 | S11: 16 | T11: 184 | U11: 135 | V11: 35 | W11: 100 | X11: 85 | Y11: 15 | Z11: 70
A12: 2020-07-13 | B12: فهد | C12: 260 | D12: 15 | E12: 245 | F12: 125 | G12: 15 | H12: 110 | I12: 168 | J12: 25 | K12: 143 | L12: 90 | M12: 30 | N12: 60 | O12: 113 | P12: 26 | Q12: 87 | R12: 170 | S12: 50 | T12: 120 | U12: 60 | V12: 30 | W12: 30 | X12: 68 | Y12: 6 | Z12: 62
A13: 2020-07-14 | B13: كبير | C13: 220 | D13: 50 | E13: 170 | F13: 160 | G13: 50 | H13: 110 | I13: 136 | J13: 30 | K13: 106 | L13: 236 | M13: 36 | N13: 200 | O13: 115 | P13: 24 | Q13: 91 | R13: 136 | S13: 36 | T13: 100 | U13: 85 | V13: 25 | W13: 60 | X13: 65 | Y13: 6 | Z13: 59
A14: 2020-07-15 | B14: رفيق | C14: 80 | D14: 15 | E14: 65 | F14: 110 | G14: 10 | H14: 100 | I14: 190 | J14: 30 | K14: 160 | L14: 330 | M14: 100 | N14: 230 | O14: 160 | P14: 30 | Q14: 130 | R14: 23 | S14: 5 | T14: 18 | U14: 90 | V14: 30 | W14: 60 | X14: 80 | Y14: 10 | Z14: 70
A15: 2020-07-16 | B15: رضوان | C15: 165 | D15: 18 | E15: 147 | F15: 180 | G15: 80 | H15: 100 | I15: 90 | J15: 20 | K15: 70 | L15: 250 | M15: 50 | N15: 200 | O15: 180 | P15: 50 | Q15: 130 | R15: 50 | S15: 5 | T15: 45 | U15: 112 | V15: 12 | W15: 100 | X15: 98 | Y15: 9 | Z15: 89
A16: 2020-07-17 | B16: الشحات | C16: 190 | D16: 19 | E16: 171 | F16: 90 | G16: 10 | H16: 80 | I16: 99 | J16: 15 | K16: 84 | L16: 265 | M16: 65 | N16: 200 | O16: 170 | P16: 50 | Q16: 120 | R16: 90 | S16: 25 | T16: 65 | U16: 98 | V16: 8 | W16: 90 | X16: 85 | Y16: 5 | Z16: 80
A17: 2020-07-18 | B17: عالم جير | C17: 280 | D17: 80 | E17: 200 | F17: 99 | G17: 9 | H17: 90 | I17: 60 | J17: 26 | K17: 34 | L17: 200 | M17: 15 | N17: 185 | O17: 160 | P17: 40 | Q17: 120 | R17: 70 | S17: 50 | T17: 20 | U17: 65 | V17: 15 | W17: 50 | X17: 66 | Y17: 6 | Z17: 60
A18: 2020-07-19 | B18: يسرى | C18: 168 | D18: 18 | E18: 150 | F18: 96 | G18: 6 | H18: 90 | I18: 50 | J18: 24 | K18: 26 | L18: 180 | M18: 16 | N18: 164 | O18: 110 | P18: 10 | Q18: 100 | R18: 85 | S18: 25 | T18: 60 | U18: 66 | V18: 6 | W18: 60 | X18: 56 | Y18: 6 | Z18: 50
A19: 2020-07-20 | B19: حسن | C19: 125 | D19: 25 | E19: 100 | F19: 66 | G19: 8 | H19: 58 | I19: 55 | J19: 30 | K19: 25 | L19: 136 | M19: 19 | N19: 117 | O19: 165 | P19: 65 | Q19: 100 | R19: 98 | S19: 8 | T19: 90 | U19: 165 | V19: 65 | W19: 100 | X19: 178 | Y19: 78 | Z19: 100
A20: 2020-07-21 | B20: زين | C20: 136 | D20: 36 | E20: 100 | F20: 35 | G20: 3 | H20: 32 | I20: 90 | J20: 20 | K20: 70 | L20: 114 | M20: 14 | N20: 100 | O20: 140 | P20: 10 | Q20: 130 | R20: 56 | S20: 6 | T20: 50 | U20: 36 | V20: 3 | W20: 33 | X20: 165 | Y20: 65 | Z20: 100
B21: الاجمالى | C21: =SUM(C5:C20) -> 2714 | D21: =SUM(D5:D20) -> 534 | E21: =SUM(E5:E20) -> 2180 | F21: 1788 | G21: 303 | H21: 1485 | I21: 1712 | J21: 375 | K21: 1337 | L21: 2400 | M21: 478 | N21: 1922 | O21: 2252 | P21: 511 | Q21: 1741 | R21: 1331 | S21: 360 | T21: 971 | U21: 1492 | V21: 484 | W21: 1008 | X21: 1609 | Y21: 366 | Z21: 1243
B29: سجل البحث
B30: من
B31: الى
B32: المندوب
B33: 6جالون
B34: 5جالون
B35: ابيضpet
B36: 15لتر
B37: 3لتر
B38: 2لتر
B39: كاسات

Sheet 8
B1: ="تقرير المستودع عن شهر : "& TEXT($A$5,"m , yyyy") -> تقرير المستودع عن شهر : 8 , 2020
C2: الاصناف
A3: التاريخ | B3: المندوب | C3: Galon5 | F3: Galon6 | I3: White pet | L3: 15 Lit | O3: 5 lit | R3: 3 lit | U3: 2 lit | X3: Kasset
C4: تحميل | D4: مرتجع | E4: صافى | F4: تحميل | G4: مرتجع | H4: صافى | I4: تحميل | J4: مرتجع | K4: صافى | L4: تحميل | M4: مرتجع | N4: صافى | O4: تحميل | P4: مرتجع | Q4: صافى | R4: تحميل | S4: مرتجع | T4: صافى | U4: تحميل | V4: مرتجع | W4: صافى | X4: تحميل | Y4: مرتجع | Z4: صافى
A5: 2020-08-06 | B5: سيد | C5: 200 | D5: 70 | E5: =C5-D5 -> 130 | F5: 60 | G5: 20 | H5: =F5-G5 -> 40 | I5: 150 | J5: 60 | K5: =I5-J5 -> 90 | L5: 123 | M5: 23 | N5: =L5-M5 -> 100 | O5: 165 | P5: 50 | Q5: =O5-P5 -> 115 | R5: 60 | S5: 10 | T5: =R5-S5 -> 50 | U5: 150 | V5: 50 | W5: =U5-V5 -> 100 | X5: 100 | Y5: 20 | Z5: =X5-Y5 -> 80
A6: 2020-08-07 | B6: على | C6: 150 | D6: 50 | E6: 100 | F6: 150 | G6: 25 | H6: =F6-G6 -> 125 | I6: 160 | J6: 28 | K6: =I6-J6 -> 132 | L6: 90 | M6: 20 | N6: =L6-M6 -> 70 | O6: 150 | P6: 12 | Q6: =O6-P6 -> 138 | R6: 15 | S6: 2 | T6: =R6-S6 -> 13 | U6: 110 | V6: 90 | W6: =U6-V6 -> 20 | X6: 48 | Y6: 14 | Z6: =X6-Y6 -> 34
A7: 2020-08-08 | B7: محمد | C7: 90 | D7: 10 | E7: 80 | F7: 170 | G7: 10 | H7: 160 | I7: 90 | J7: 26 | K7: 64 | L7: 56 | M7: 10 | N7: 46 | O7: 154 | P7: 54 | Q7: 100 | R7: 23 | S7: 12 | T7: 11 | U7: 90 | V7: 20 | W7: 70 | X7: 96 | Y7: 9 | Z7: 87
A8: 2020-08-09 | B8: شوجن | C8: 110 | D8: 20 | E8: 90 | F8: 110 | G8: 15 | H8: 95 | I8: 60 | J8: 10 | K8: 50 | L8: 80 | M8: 30 | N8: 50 | O8: 100 | P8: 20 | Q8: 80 | R8: 15 | S8: 5 | T8: 10 | U8: 80 | V8: 10 | W8: 70 | X8: 115 | Y8: 13 | Z8: 102
A9: 2020-08-10 | B9: ابراهيم | C9: 170 | D9: 30 | E9: 140 | F9: 56 | G9: 6 | H9: 50 | I9: 66 | J9: 6 | K9: 60 | L9: 70 | M9: 20 | N9: 50 | O9: 120 | P9: 22 | Q9: 98 | R9: 90 | S9: 55 | T9: 35 | U9: 60 | V9: 20 | W9: 40 | X9: 136 | Y9: 36 | Z9: 100
A10: 2020-08-11 | B10: زنجير | C10: 180 | D10: 23 | E10: 157 | F10: 158 | G10: 13 | H10: 145 | I10: 68 | J10: 5 | K10: 63 | L10: 65 | M10: 15 | N10: 50 | O10: 110 | P10: 23 | Q10: 87 | R10: 150 | S10: 50 | T10: 100 | U10: 90 | V10: 65 | W10: 25 | X10: 168 | Y10: 68 | Z10: 100
A11: 2020-08-12 | B11: سلامه | C11: 190 | D11: 25 | E11: 165 | F11: 123 | G11: 23 | H11: 100 | I11: 180 | J11: 20 | K11: 160 | L11: 115 | M11: 15 | N11: 100 | O11: 140 | P11: 25 | Q11: 115 | R11: 200 | S11: 16 | T11: 184 | U11: 135 | V11: 35 | W11: 100 | X11: 85 | Y11: 15 | Z11: 70
A12: 2020-08-13 | B12: فهد | C12: 260 | D12: 15 | E12: 245 | F12: 125 | G12: 15 | H12: 110 | I12: 168 | J12: 25 | K12: 143 | L12: 90 | M12: 30 | N12: 60 | O12: 113 | P12: 26 | Q12: 87 | R12: 170 | S12: 50 | T12: 120 | U12: 60 | V12: 30 | W12: 30 | X12: 68 | Y12: 6 | Z12: 62
A13: 2020-08-14 | B13: كبير | C13: 220 | D13: 50 | E13: 170 | F13: 160 | G13: 50 | H13: 110 | I13: 136 | J13: 30 | K13: 106 | L13: 236 | M13: 36 | N13: 200 | O13: 115 | P13: 24 | Q13: 91 | R13: 136 | S13: 36 | T13: 100 | U13: 85 | V13: 25 | W13: 60 | X13: 65 | Y13: 6 | Z13: 59
A14: 2020-08-15 | B14: رفيق | C14: 80 | D14: 15 | E14: 65 | F14: 110 | G14: 10 | H14: 100 | I14: 190 | J14: 30 | K14: 160 | L14: 330 | M14: 100 | N14: 230 | O14: 160 | P14: 30 | Q14: 130 | R14: 23 | S14: 5 | T14: 18 | U14: 90 | V14: 30 | W14: 60 | X14: 80 | Y14: 10 | Z14: 70
A15: 2020-08-16 | B15: رضوان | C15: 165 | D15: 18 | E15: 147 | F15: 180 | G15: 80 | H15: 100 | I15: 90 | J15: 20 | K15: 70 | L15: 250 | M15: 50 | N15: 200 | O15: 180 | P15: 50 | Q15: 130 | R15: 50 | S15: 5 | T15: 45 | U15: 112 | V15: 12 | W15: 100 | X15: 98 | Y15: 9 | Z15: 89
A16: 2020-08-17 | B16: الشحات | C16: 190 | D16: 19 | E16: 171 | F16: 90 | G16: 10 | H16: 80 | I16: 99 | J16: 15 | K16: 84 | L16: 265 | M16: 65 | N16: 200 | O16: 170 | P16: 50 | Q16: 120 | R16: 90 | S16: 25 | T16: 65 | U16: 98 | V16: 8 | W16: 90 | X16: 85 | Y16: 5 | Z16: 80
A17: 2020-08-18 | B17: عالم جير | C17: 280 | D17: 80 | E17: 200 | F17: 99 | G17: 9 | H17: 90 | I17: 60 | J17: 26 | K17: 34 | L17: 200 | M17: 15 | N17: 185 | O17: 160 | P17: 40 | Q17: 120 | R17: 70 | S17: 50 | T17: 20 | U17: 65 | V17: 15 | W17: 50 | X17: 66 | Y17: 6 | Z17: 60
A18: 2020-08-19 | B18: يسرى | C18: 168 | D18: 18 | E18: 150 | F18: 96 | G18: 6 | H18: 90 | I18: 50 | J18: 24 | K18: 26 | L18: 180 | M18: 16 | N18: 164 | O18: 110 | P18: 10 | Q18: 100 | R18: 85 | S18: 25 | T18: 60 | U18: 66 | V18: 6 | W18: 60 | X18: 56 | Y18: 6 | Z18: 50
A19: 2020-08-20 | B19: حسن | C19: 125 | D19: 25 | E19: 100 | F19: 66 | G19: 8 | H19: 58 | I19: 55 | J19: 30 | K19: 25 | L19: 136 | M19: 19 | N19: 117 | O19: 165 | P19: 65 | Q19: 100 | R19: 98 | S19: 8 | T19: 90 | U19: 165 | V19: 65 | W19: 100 | X19: 178 | Y19: 78 | Z19: 100
A20: 2020-08-21 | B20: زين | C20: 136 | D20: 36 | E20: 100 | F20: 35 | G20: 3 | H20: 32 | I20: 90 | J20: 20 | K20: 70 | L20: 114 | M20: 14 | N20: 100 | O20: 140 | P20: 10 | Q20: 130 | R20: 56 | S20: 6 | T20: 50 | U20: 36 | V20: 3 | W20: 33 | X20: 165 | Y20: 65 | Z20: 100
B21: الاجمالى | C21: =SUM(C5:C20) -> 2714 | D21: =SUM(D5:D20) -> 504 | E21: =SUM(E5:E20) -> 2210 | F21: 1788 | G21: 303 | H21: 1485 | I21: 1712 | J21: 375 | K21: 1337 | L21: 2400 | M21: 478 | N21: 1922 | O21: 2252 | P21: 511 | Q21: 1741 | R21: 1331 | S21: 360 | T21: 971 | U21: 1492 | V21: 484 | W21: 1008 | X21: 1609 | Y21: 366 | Z21: 1243
B29: سجل البحث
B30: من
B31: الى
B32: المندوب
B33: 6جالون
B34: 5جالون
B35: ابيضpet
B36: 15لتر
B37: 3لتر
B38: 2لتر
B39: كاسات

Sheet 9
B1: ="تقرير المستودع عن شهر : "& TEXT($A$5,"m , yyyy") -> تقرير المستودع عن شهر : 9 , 2020
C2: الاصناف
A3: التاريخ | B3: المندوب | C3: Galon5 | F3: Galon6 | I3: White pet | L3: 15 Lit | O3: 5 lit | R3: 3 lit | U3: 2 lit | X3: Kasset
C4: تحميل | D4: مرتجع | E4: صافى | F4: تحميل | G4: مرتجع | H4: صافى | I4: تحميل | J4: مرتجع | K4: صافى | L4: تحميل | M4: مرتجع | N4: صافى | O4: تحميل | P4: مرتجع | Q4: صافى | R4: تحميل | S4: مرتجع | T4: صافى | U4: تحميل | V4: مرتجع | W4: صافى | X4: تحميل | Y4: مرتجع | Z4: صافى
A5: 2020-09-06 | B5: سيد | C5: 200 | D5: 100 | E5: =C5-D5 -> 100 | F5: 60 | G5: 20 | H5: =F5-G5 -> 40 | I5: 150 | J5: 60 | K5: =I5-J5 -> 90 | L5: 123 | M5: 23 | N5: =L5-M5 -> 100 | O5: 165 | P5: 50 | Q5: =O5-P5 -> 115 | R5: 60 | S5: 10 | T5: =R5-S5 -> 50 | U5: 150 | V5: 50 | W5: =U5-V5 -> 100 | X5: 100 | Y5: 20 | Z5: =X5-Y5 -> 80
A6: 2020-09-07 | B6: على | C6: 150 | D6: 50 | E6: =C6-D6 -> 100 | F6: 150 | G6: 25 | H6: =F6-G6 -> 125 | I6: 160 | J6: 28 | K6: =I6-J6 -> 132 | L6: 90 | M6: 20 | N6: =L6-M6 -> 70 | O6: 150 | P6: 12 | Q6: =O6-P6 -> 138 | R6: 15 | S6: 2 | T6: =R6-S6 -> 13 | U6: 110 | V6: 90 | W6: =U6-V6 -> 20 | X6: 48 | Y6: 14 | Z6: =X6-Y6 -> 34
A7: 2020-09-08 | B7: محمد | C7: 90 | D7: 10 | E7: 80 | F7: 170 | G7: 10 | H7: 160 | I7: 90 | J7: 26 | K7: 64 | L7: 56 | M7: 10 | N7: 46 | O7: 154 | P7: 54 | Q7: 100 | R7: 23 | S7: 12 | T7: 11 | U7: 90 | V7: 20 | W7: 70 | X7: 96 | Y7: 9 | Z7: 87
A8: 2020-09-09 | B8: شوجن | C8: 110 | D8: 20 | E8: 90 | F8: 110 | G8: 15 | H8: 95 | I8: 60 | J8: 10 | K8: 50 | L8: 80 | M8: 30 | N8: 50 | O8: 100 | P8: 20 | Q8: 80 | R8: 15 | S8: 5 | T8: 10 | U8: 80 | V8: 10 | W8: 70 | X8: 115 | Y8: 13 | Z8: 102
A9: 2020-09-10 | B9: ابراهيم | C9: 170 | D9: 30 | E9: 140 | F9: 56 | G9: 6 | H9: 50 | I9: 66 | J9: 6 | K9: 60 | L9: 70 | M9: 20 | N9: 50 | O9: 120 | P9: 22 | Q9: 98 | R9: 90 | S9: 55 | T9: 35 | U9: 60 | V9: 20 | W9: 40 | X9: 136 | Y9: 36 | Z9: 100
A10: 2020-09-11 | B10: زنجير | C10: 180 | D10: 23 | E10: 157 | F10: 158 | G10: 13 | H10: 145 | I10: 68 | J10: 5 | K10: 63 | L10: 65 | M10: 15 | N10: 50 | O10: 110 | P10: 23 | Q10: 87 | R10: 150 | S10: 50 | T10: 100 | U10: 90 | V10: 65 | W10: 25 | X10: 168 | Y10: 68 | Z10: 100
A11: 2020-09-12 | B11: سلامه | C11: 190 | D11: 25 | E11: 165 | F11: 123 | G11: 23 | H11: 100 | I11: 180 | J11: 20 | K11: 160 | L11: 115 | M11: 15 | N11: 100 | O11: 140 | P11: 25 | Q11: 115 | R11: 200 | S11: 16 | T11: 184 | U11: 135 | V11: 35 | W11: 100 | X11: 85 | Y11: 15 | Z11: 70
A12: 2020-09-13 | B12: فهد | C12: 260 | D12: 15 | E12: 245 | F12: 125 | G12: 15 | H12: 110 | I12: 168 | J12: 25 | K12: 143 | L12: 90 | M12: 30 | N12: 60 | O12: 113 | P12: 26 | Q12: 87 | R12: 170 | S12: 50 | T12: 120 | U12: 60 | V12: 30 | W12: 30 | X12: 68 | Y12: 6 | Z12: 62
A13: 2020-09-14 | B13: كبير | C13: 220 | D13: 50 | E13: 170 | F13: 160 | G13: 50 | H13: 110 | I13: 136 | J13: 30 | K13: 106 | L13: 236 | M13: 36 | N13: 200 | O13: 115 | P13: 24 | Q13: 91 | R13: 136 | S13: 36 | T13: 100 | U13: 85 | V13: 25 | W13: 60 | X13: 65 | Y13: 6 | Z13: 59
A14: 2020-09-15 | B14: رفيق | C14: 80 | D14: 15 | E14: 65 | F14: 110 | G14: 10 | H14: 100 | I14: 190 | J14: 30 | K14: 160 | L14: 330 | M14: 100 | N14: 230 | O14: 160 | P14: 30 | Q14: 130 | R14: 23 | S14: 5 | T14: 18 | U14: 90 | V14: 30 | W14: 60 | X14: 80 | Y14: 10 | Z14: 70
A15: 2020-09-16 | B15: رضوان | C15: 165 | D15: 18 | E15: 147 | F15: 180 | G15: 80 | H15: 100 | I15: 90 | J15: 20 | K15: 70 | L15: 250 | M15: 50 | N15: 200 | O15: 180 | P15: 50 | Q15: 130 | R15: 50 | S15: 5 | T15: 45 | U15: 112 | V15: 12 | W15: 100 | X15: 98 | Y15: 9 | Z15: 89
A16: 2020-09-17 | B16: الشحات | C16: 190 | D16: 19 | E16: 171 | F16: 90 | G16: 10 | H16: 80 | I16: 99 | J16: 15 | K16: 84 | L16: 265 | M16: 65 | N16: 200 | O16: 170 | P16: 50 | Q16: 120 | R16: 90 | S16: 25 | T16: 65 | U16: 98 | V16: 8 | W16: 90 | X16: 85 | Y16: 5 | Z16: 80
A17: 2020-09-18 | B17: عالم جير | C17: 280 | D17: 80 | E17: 200 | F17: 99 | G17: 9 | H17: 90 | I17: 60 | J17: 26 | K17: 34 | L17: 200 | M17: 15 | N17: 185 | O17: 160 | P17: 40 | Q17: 120 | R17: 70 | S17: 50 | T17: 20 | U17: 65 | V17: 15 | W17: 50 | X17: 66 | Y17: 6 | Z17: 60
A18: 2020-09-19 | B18: يسرى | C18: 168 | D18: 18 | E18: 150 | F18: 96 | G18: 6 | H18: 90 | I18: 50 | J18: 24 | K18: 26 | L18: 180 | M18: 16 | N18: 164 | O18: 110 | P18: 10 | Q18: 100 | R18: 85 | S18: 25 | T18: 60 | U18: 66 | V18: 6 | W18: 60 | X18: 56 | Y18: 6 | Z18: 50
A19: 2020-09-20 | B19: حسن | C19: 125 | D19: 25 | E19: 100 | F19: 66 | G19: 8 | H19: 58 | I19: 55 | J19: 30 | K19: 25 | L19: 136 | M19: 19 | N19: 117 | O19: 165 | P19: 65 | Q19: 100 | R19: 98 | S19: 8 | T19: 90 | U19: 165 | V19: 65 | W19: 100 | X19: 178 | Y19: 78 | Z19: 100
A20: 2020-09-21 | B20: زين | C20: 136 | D20: 36 | E20: 100 | F20: 35 | G20: 3 | H20: 32 | I20: 90 | J20: 20 | K20: 70 | L20: 114 | M20: 14 | N20: 100 | O20: 140 | P20: 10 | Q20: 130 | R20: 56 | S20: 6 | T20: 50 | U20: 36 | V20: 3 | W20: 33 | X20: 165 | Y20: 65 | Z20: 100
B21: الاجمالى | C21: =SUM(C5:C20) -> 2714 | D21: =SUM(D5:D20) -> 534 | E21: =SUM(E5:E20) -> 2180 | F21: 1788 | G21: 303 | H21: 1485 | I21: 1712 | J21: 375 | K21: 1337 | L21: 2400 | M21: 478 | N21: 1922 | O21: 2252 | P21: 511 | Q21: 1741 | R21: 1331 | S21: 360 | T21: 971 | U21: 1492 | V21: 484 | W21: 1008 | X21: 1609 | Y21: 366 | Z21: 1243
B29: سجل البحث
B30: من
B31: الى
B32: المندوب
B33: 6جالون
B34: 5جالون
B35: ابيضpet
B36: 15لتر
B37: 3لتر
B38: 2لتر
B39: كاسات

Sheet 10
B1: ="تقرير المستودع عن شهر : "& TEXT($A$5,"m , yyyy") -> تقرير المستودع عن شهر : 10 , 2020
C2: الاصناف
A3: التاريخ | B3: المندوب | C3: Galon5 | F3: Galon6 | I3: White pet | L3: 15 Lit | O3: 5 lit | R3: 3 lit | U3: 2 lit | X3: Kasset
C4: تحميل | D4: مرتجع | E4: صافى | F4: تحميل | G4: مرتجع | H4: صافى | I4: تحميل | J4: مرتجع | K4: صافى | L4: تحميل | M4: مرتجع | N4: صافى | O4: تحميل | P4: مرتجع | Q4: صافى | R4: تحميل | S4: مرتجع | T4: صافى | U4: تحميل | V4: مرتجع | W4: صافى | X4: تحميل | Y4: مرتجع | Z4: صافى
A5: 2020-10-06 | B5: سيد | C5: 200 | D5: 50 | E5: =C5-D5 -> 150 | F5: 60 | G5: 20 | H5: =F5-G5 -> 40 | I5: 150 | J5: 60 | K5: =I5-J5 -> 90 | L5: 123 | M5: 75 | N5: =L5-M5 -> 48 | O5: 165 | P5: 50 | Q5: =O5-P5 -> 115 | R5: 60 | S5: 10 | T5: =R5-S5 -> 50 | U5: 150 | V5: 50 | W5: =U5-V5 -> 100 | X5: 100 | Y5: 20 | Z5: =X5-Y5 -> 80
A6: 2020-10-07 | B6: على | C6: 150 | D6: 50 | E6: =C6-D6 -> 100 | F6: 150 | G6: 25 | H6: =F6-G6 -> 125 | I6: 160 | J6: 28 | K6: =I6-J6 -> 132 | L6: 90 | M6: 20 | N6: =L6-M6 -> 70 | O6: 150 | P6: 12 | Q6: =O6-P6 -> 138 | R6: 15 | S6: 2 | T6: =R6-S6 -> 13 | U6: 110 | V6: 90 | W6: =U6-V6 -> 20 | X6: 48 | Y6: 14 | Z6: =X6-Y6 -> 34
A7: 2020-10-08 | B7: محمد | C7: 90 | D7: 10 | E7: 80 | F7: 170 | G7: 10 | H7: 160 | I7: 90 | J7: 26 | K7: 64 | L7: 56 | M7: 10 | N7: 46 | O7: 154 | P7: 54 | Q7: 100 | R7: 23 | S7: 12 | T7: 11 | U7: 90 | V7: 20 | W7: 70 | X7: 96 | Y7: 9 | Z7: 87
A8: 2020-10-09 | B8: شوجن | C8: 110 | D8: 20 | E8: 90 | F8: 110 | G8: 15 | H8: 95 | I8: 60 | J8: 10 | K8: 50 | L8: 80 | M8: 30 | N8: 50 | O8: 100 | P8: 20 | Q8: 80 | R8: 15 | S8: 5 | T8: 10 | U8: 80 | V8: 10 | W8: 70 | X8: 115 | Y8: 13 | Z8: 102
A9: 2020-10-10 | B9: ابراهيم | C9: 170 | D9: 30 | E9: 140 | F9: 56 | G9: 6 | H9: 50 | I9: 66 | J9: 6 | K9: 60 | L9: 70 | M9: 20 | N9: 50 | O9: 120 | P9: 22 | Q9: 98 | R9: 90 | S9: 55 | T9: 35 | U9: 60 | V9: 20 | W9: 40 | X9: 136 | Y9: 36 | Z9: 100
A10: 2020-10-11 | B10: زنجير | C10: 180 | D10: 23 | E10: 157 | F10: 158 | G10: 13 | H10: 145 | I10: 68 | J10: 5 | K10: 63 | L10: 65 | M10: 15 | N10: 50 | O10: 110 | P10: 23 | Q10: 87 | R10: 150 | S10: 50 | T10: 100 | U10: 90 | V10: 65 | W10: 25 | X10: 168 | Y10: 68 | Z10: 100
A11: 2020-10-12 | B11: سلامه | C11: 190 | D11: 25 | E11: 165 | F11: 123 | G11: 23 | H11: 100 | I11: 180 | J11: 20 | K11: 160 | L11: 115 | M11: 15 | N11: 100 | O11: 140 | P11: 25 | Q11: 115 | R11: 200 | S11: 16 | T11: 184 | U11: 135 | V11: 35 | W11: 100 | X11: 85 | Y11: 15 | Z11: 70
A12: 2020-10-13 | B12: فهد | C12: 260 | D12: 15 | E12: 245 | F12: 125 | G12: 15 | H12: 110 | I12: 168 | J12: 25 | K12: 143 | L12: 90 | M12: 30 | N12: 60 | O12: 113 | P12: 26 | Q12: 87 | R12: 170 | S12: 50 | T12: 120 | U12: 60 | V12: 30 | W12: 30 | X12: 68 | Y12: 6 | Z12: 62
A13: 2020-10-14 | B13: كبير | C13: 220 | D13: 50 | E13: 170 | F13: 160 | G13: 50 | H13: 110 | I13: 136 | J13: 30 | K13: 106 | L13: 236 | M13: 36 | N13: 200 | O13: 115 | P13: 24 | Q13: 91 | R13: 136 | S13: 36 | T13: 100 | U13: 85 | V13: 25 | W13: 60 | X13: 65 | Y13: 6 | Z13: 59
A14: 2020-10-15 | B14: رفيق | C14: 80 | D14: 15 | E14: 65 | F14: 110 | G14: 10 | H14: 100 | I14: 190 | J14: 30 | K14: 160 | L14: 330 | M14: 100 | N14: 230 | O14: 160 | P14: 30 | Q14: 130 | R14: 23 | S14: 5 | T14: 18 | U14: 90 | V14: 30 | W14: 60 | X14: 80 | Y14: 10 | Z14: 70
A15: 2020-10-16 | B15: رضوان | C15: 165 | D15: 18 | E15: 147 | F15: 180 | G15: 80 | H15: 100 | I15: 90 | J15: 20 | K15: 70 | L15: 250 | M15: 50 | N15: 200 | O15: 180 | P15: 50 | Q15: 130 | R15: 50 | S15: 5 | T15: 45 | U15: 112 | V15: 12 | W15: 100 | X15: 98 | Y15: 9 | Z15: 89
A16: 2020-10-17 | B16: الشحات | C16: 190 | D16: 19 | E16: 171 | F16: 90 | G16: 10 | H16: 80 | I16: 99 | J16: 15 | K16: 84 | L16: 265 | M16: 65 | N16: 200 | O16: 170 | P16: 50 | Q16: 120 | R16: 90 | S16: 25 | T16: 65 | U16: 98 | V16: 8 | W16: 90 | X16: 85 | Y16: 5 | Z16: 80
A17: 2020-10-18 | B17: عالم جير | C17: 280 | D17: 80 | E17: 200 | F17: 99 | G17: 9 | H17: 90 | I17: 60 | J17: 26 | K17: 34 | L17: 200 | M17: 15 | N17: 185 | O17: 160 | P17: 40 | Q17: 120 | R17: 70 | S17: 50 | T17: 20 | U17: 65 | V17: 15 | W17: 50 | X17: 66 | Y17: 6 | Z17: 60
A18: 2020-10-19 | B18: يسرى | C18: 168 | D18: 18 | E18: 150 | F18: 96 | G18: 6 | H18: 90 | I18: 50 | J18: 24 | K18: 26 | L18: 180 | M18: 16 | N18: 164 | O18: 110 | P18: 10 | Q18: 100 | R18: 85 | S18: 25 | T18: 60 | U18: 66 | V18: 6 | W18: 60 | X18: 56 | Y18: 6 | Z18: 50
A19: 2020-10-20 | B19: حسن | C19: 125 | D19: 25 | E19: 100 | F19: 66 | G19: 8 | H19: 58 | I19: 55 | J19: 30 | K19: 25 | L19: 136 | M19: 19 | N19: 117 | O19: 165 | P19: 65 | Q19: 100 | R19: 98 | S19: 8 | T19: 90 | U19: 165 | V19: 65 | W19: 100 | X19: 178 | Y19: 78 | Z19: 100
A20: 2020-10-21 | B20: زين | C20: 136 | D20: 36 | E20: 100 | F20: 35 | G20: 3 | H20: 32 | I20: 90 | J20: 20 | K20: 70 | L20: 114 | M20: 14 | N20: 100 | O20: 140 | P20: 10 | Q20: 130 | R20: 56 | S20: 6 | T20: 50 | U20: 36 | V20: 3 | W20: 33 | X20: 165 | Y20: 65 | Z20: 100
B21: الاجمالى | C21: =SUM(C5:C20) -> 2714 | D21: =SUM(D5:D20) -> 484 | E21: =SUM(E5:E20) -> 2230 | F21: 1788 | G21: 303 | H21: 1485 | I21: 1712 | J21: 375 | K21: 1337 | L21: 2400 | M21: 530 | N21: 1870 | O21: 2252 | P21: 511 | Q21: 1741 | R21: 1331 | S21: 360 | T21: 971 | U21: 1492 | V21: 484 | W21: 1008 | X21: 1609 | Y21: 366 | Z21: 1243
B29: سجل البحث
B30: من
B31: الى
B32: المندوب
B33: 6جالون
B34: 5جالون
B35: ابيضpet
B36: 15لتر
B37: 3لتر
B38: 2لتر
B39: كاسات

Sheet 11
B1: ="تقرير المستودع عن شهر : "& TEXT($A$5,"m , yyyy") -> تقرير المستودع عن شهر : 11 , 2020
C2: الاصناف
A3: التاريخ | B3: المندوب | C3: Galon5 | F3: Galon6 | I3: White pet | L3: 15 Lit | O3: 5 lit | R3: 3 lit | U3: 2 lit | X3: Kasset
C4: تحميل | D4: مرتجع | E4: صافى | F4: تحميل | G4: مرتجع | H4: صافى | I4: تحميل | J4: مرتجع | K4: صافى | L4: تحميل | M4: مرتجع | N4: صافى | O4: تحميل | P4: مرتجع | Q4: صافى | R4: تحميل | S4: مرتجع | T4: صافى | U4: تحميل | V4: مرتجع | W4: صافى | X4: تحميل | Y4: مرتجع | Z4: صافى
A5: 2020-11-06 | B5: سيد | C5: 200 | D5: 70 | E5: =C5-D5 -> 130 | F5: 60 | G5: 20 | H5: =F5-G5 -> 40 | I5: 150 | J5: 60 | K5: =I5-J5 -> 90 | L5: 123 | M5: 23 | N5: =L5-M5 -> 100 | O5: 165 | P5: 50 | Q5: =O5-P5 -> 115 | R5: 60 | S5: 10 | T5: =R5-S5 -> 50 | U5: 150 | V5: 50 | W5: =U5-V5 -> 100 | X5: 100 | Y5: 20 | Z5: =X5-Y5 -> 80
A6: 2020-11-07 | B6: على | C6: 150 | D6: 50 | E6: 100 | F6: 150 | G6: 25 | H6: =F6-G6 -> 125 | I6: 160 | J6: 28 | K6: =I6-J6 -> 132 | L6: 90 | M6: 20 | N6: =L6-M6 -> 70 | O6: 150 | P6: 12 | Q6: =O6-P6 -> 138 | R6: 15 | S6: 2 | T6: =R6-S6 -> 13 | U6: 110 | V6: 90 | W6: =U6-V6 -> 20 | X6: 48 | Y6: 14 | Z6: =X6-Y6 -> 34
A7: 2020-11-08 | B7: محمد | C7: 90 | D7: 10 | E7: 80 | F7: 170 | G7: 10 | H7: 160 | I7: 90 | J7: 26 | K7: 64 | L7: 56 | M7: 10 | N7: 46 | O7: 154 | P7: 54 | Q7: 100 | R7: 23 | S7: 12 | T7: 11 | U7: 90 | V7: 20 | W7: 70 | X7: 96 | Y7: 9 | Z7: 87
A8: 2020-11-09 | B8: شوجن | C8: 110 | D8: 20 | E8: 90 | F8: 110 | G8: 15 | H8: 95 | I8: 60 | J8: 10 | K8: 50 | L8: 80 | M8: 30 | N8: 50 | O8: 100 | P8: 20 | Q8: 80 | R8: 15 | S8: 5 | T8: 10 | U8: 80 | V8: 10 | W8: 70 | X8: 115 | Y8: 13 | Z8: 102
A9: 2020-11-10 | B9: ابراهيم | C9: 170 | D9: 30 | E9: 140 | F9: 56 | G9: 6 | H9: 50 | I9: 66 | J9: 6 | K9: 60 | L9: 70 | M9: 20 | N9: 50 | O9: 120 | P9: 22 | Q9: 98 | R9: 90 | S9: 55 | T9: 35 | U9: 60 | V9: 20 | W9: 40 | X9: 136 | Y9: 36 | Z9: 100
A10: 2020-11-11 | B10: زنجير | C10: 180 | D10: 23 | E10: 157 | F10: 158 | G10: 13 | H10: 145 | I10: 68 | J10: 5 | K10: 63 | L10: 65 | M10: 15 | N10: 50 | O10: 110 | P10: 23 | Q10: 87 | R10: 150 | S10: 50 | T10: 100 | U10: 90 | V10: 65 | W10: 25 | X10: 168 | Y10: 68 | Z10: 100
A11: 2020-11-12 | B11: سلامه | C11: 190 | D11: 25 | E11: 165 | F11: 123 | G11: 23 | H11: 100 | I11: 180 | J11: 20 | K11: 160 | L11: 115 | M11: 15 | N11: 100 | O11: 140 | P11: 25 | Q11: 115 | R11: 200 | S11: 16 | T11: 184 | U11: 135 | V11: 35 | W11: 100 | X11: 85 | Y11: 15 | Z11: 70
A12: 2020-11-13 | B12: فهد | C12: 260 | D12: 15 | E12: 245 | F12: 125 | G12: 15 | H12: 110 | I12: 168 | J12: 25 | K12: 143 | L12: 90 | M12: 30 | N12: 60 | O12: 113 | P12: 26 | Q12: 87 | R12: 170 | S12: 50 | T12: 120 | U12: 60 | V12: 30 | W12: 30 | X12: 68 | Y12: 6 | Z12: 62
A13: 2020-11-14 | B13: كبير | C13: 220 | D13: 50 | E13: 170 | F13: 160 | G13: 50 | H13: 110 | I13: 136 | J13: 30 | K13: 106 | L13: 236 | M13: 36 | N13: 200 | O13: 115 | P13: 24 | Q13: 91 | R13: 136 | S13: 36 | T13: 100 | U13: 85 | V13: 25 | W13: 60 | X13: 65 | Y13: 6 | Z13: 59
A14: 2020-11-15 | B14: رفيق | C14: 80 | D14: 15 | E14: 65 | F14: 110 | G14: 10 | H14: 100 | I14: 190 | J14: 30 | K14: 160 | L14: 330 | M14: 100 | N14: 230 | O14: 160 | P14: 30 | Q14: 130 | R14: 23 | S14: 5 | T14: 18 | U14: 90 | V14: 30 | W14: 60 | X14: 80 | Y14: 10 | Z14: 70
A15: 2020-11-16 | B15: رضوان | C15: 165 | D15: 18 | E15: 147 | F15: 180 | G15: 80 | H15: 100 | I15: 90 | J15: 20 | K15: 70 | L15: 250 | M15: 50 | N15: 200 | O15: 180 | P15: 50 | Q15: 130 | R15: 50 | S15: 5 | T15: 45 | U15: 112 | V15: 12 | W15: 100 | X15: 98 | Y15: 9 | Z15: 89
A16: 2020-11-17 | B16: الشحات | C16: 190 | D16: 19 | E16: 171 | F16: 90 | G16: 10 | H16: 80 | I16: 99 | J16: 15 | K16: 84 | L16: 265 | M16: 65 | N16: 200 | O16: 170 | P16: 50 | Q16: 120 | R16: 90 | S16: 25 | T16: 65 | U16: 98 | V16: 8 | W16: 90 | X16: 85 | Y16: 5 | Z16: 80
A17: 2020-11-18 | B17: عالم جير | C17: 280 | D17: 80 | E17: 200 | F17: 99 | G17: 9 | H17: 90 | I17: 60 | J17: 26 | K17: 34 | L17: 200 | M17: 15 | N17: 185 | O17: 160 | P17: 40 | Q17: 120 | R17: 70 | S17: 50 | T17: 20 | U17: 65 | V17: 15 | W17: 50 | X17: 66 | Y17: 6 | Z17: 60
A18: 2020-11-19 | B18: يسرى | C18: 168 | D18: 18 | E18: 150 | F18: 96 | G18: 6 | H18: 90 | I18: 50 | J18: 24 | K18: 26 | L18: 180 | M18: 16 | N18: 164 | O18: 110 | P18: 10 | Q18: 100 | R18: 85 | S18: 25 | T18: 60 | U18: 66 | V18: 6 | W18: 60 | X18: 56 | Y18: 6 | Z18: 50
A19: 2020-11-20 | B19: حسن | C19: 125 | D19: 25 | E19: 100 | F19: 66 | G19: 8 | H19: 58 | I19: 55 | J19: 30 | K19: 25 | L19: 136 | M19: 19 | N19: 117 | O19: 165 | P19: 65 | Q19: 100 | R19: 98 | S19: 8 | T19: 90 | U19: 165 | V19: 65 | W19: 100 | X19: 178 | Y19: 78 | Z19: 100
A20: 2020-11-21 | B20: زين | C20: 136 | D20: 36 | E20: 100 | F20: 35 | G20: 3 | H20: 32 | I20: 90 | J20: 20 | K20: 70 | L20: 114 | M20: 14 | N20: 100 | O20: 140 | P20: 10 | Q20: 130 | R20: 56 | S20: 6 | T20: 50 | U20: 36 | V20: 3 | W20: 33 | X20: 165 | Y20: 65 | Z20: 100
B21: الاجمالى | C21: =SUM(C5:C20) -> 2714 | D21: =SUM(D5:D20) -> 504 | E21: =SUM(E5:E20) -> 2210 | F21: 1788 | G21: 303 | H21: 1485 | I21: 1712 | J21: 375 | K21: 1337 | L21: 2400 | M21: 478 | N21: 1922 | O21: 2252 | P21: 511 | Q21: 1741 | R21: 1331 | S21: 360 | T21: 971 | U21: 1492 | V21: 484 | W21: 1008 | X21: 1609 | Y21: 366 | Z21: 1243
B29: سجل البحث
B30: من
B31: الى
B32: المندوب
B33: 6جالون
B34: 5جالون
B35: ابيضpet
B36: 15لتر
B37: 3لتر
B38: 2لتر
B39: كاسات

Sheet 12
B1: ="تقرير المستودع عن شهر : "& TEXT($A$5,"m , yyyy") -> تقرير المستودع عن شهر : 12 , 2020
C2: الاصناف
A3: التاريخ | B3: المندوب | C3: Galon5 | F3: Galon6 | I3: White pet | L3: 15 Lit | O3: 5 lit | R3: 3 lit | U3: 2 lit | X3: Kasset
C4: تحميل | D4: مرتجع | E4: صافى | F4: تحميل | G4: مرتجع | H4: صافى | I4: تحميل | J4: مرتجع | K4: صافى | L4: تحميل | M4: مرتجع | N4: صافى | O4: تحميل | P4: مرتجع | Q4: صافى | R4: تحميل | S4: مرتجع | T4: صافى | U4: تحميل | V4: مرتجع | W4: صافى | X4: تحميل | Y4: مرتجع | Z4: صافى
A5: 2020-12-06 | B5: سيد | C5: 200 | D5: 100 | E5: =C5-D5 -> 100 | F5: 60 | G5: 20 | H5: =F5-G5 -> 40 | I5: 150 | J5: 60 | K5: =I5-J5 -> 90 | L5: 123 | M5: 23 | N5: =L5-M5 -> 100 | O5: 165 | P5: 50 | Q5: =O5-P5 -> 115 | R5: 60 | S5: 10 | T5: =R5-S5 -> 50 | U5: 150 | V5: 50 | W5: =U5-V5 -> 100 | X5: 100 | Y5: 20 | Z5: =X5-Y5 -> 80
A6: 2020-12-07 | B6: على | C6: 150 | D6: 50 | E6: =C6-D6 -> 100 | F6: 150 | G6: 25 | H6: =F6-G6 -> 125 | I6: 160 | J6: 28 | K6: =I6-J6 -> 132 | L6: 90 | M6: 20 | N6: =L6-M6 -> 70 | O6: 150 | P6: 12 | Q6: =O6-P6 -> 138 | R6: 15 | S6: 2 | T6: =R6-S6 -> 13 | U6: 110 | V6: 90 | W6: =U6-V6 -> 20 | X6: 48 | Y6: 14 | Z6: =X6-Y6 -> 34
A7: 2020-12-08 | B7: محمد | C7: 90 | D7: 10 | E7: 80 | F7: 170 | G7: 10 | H7: 160 | I7: 90 | J7: 26 | K7: 64 | L7: 56 | M7: 10 | N7: 46 | O7: 154 | P7: 54 | Q7: 100 | R7: 23 | S7: 12 | T7: 11 | U7: 90 | V7: 20 | W7: 70 | X7: 96 | Y7: 9 | Z7: 87
A8: 2020-12-09 | B8: شوجن | C8: 110 | D8: 20 | E8: 90 | F8: 110 | G8: 15 | H8: 95 | I8: 60 | J8: 10 | K8: 50 | L8: 80 | M8: 30 | N8: 50 | O8: 100 | P8: 20 | Q8: 80 | R8: 15 | S8: 5 | T8: 10 | U8: 80 | V8: 10 | W8: 70 | X8: 115 | Y8: 13 | Z8: 102
A9: 2020-12-10 | B9: ابراهيم | C9: 170 | D9: 30 | E9: 140 | F9: 56 | G9: 6 | H9: 50 | I9: 66 | J9: 6 | K9: 60 | L9: 70 | M9: 20 | N9: 50 | O9: 120 | P9: 22 | Q9: 98 | R9: 90 | S9: 55 | T9: 35 | U9: 60 | V9: 20 | W9: 40 | X9: 136 | Y9: 36 | Z9: 100
A10: 2020-12-11 | B10: زنجير | C10: 180 | D10: 23 | E10: 157 | F10: 158 | G10: 13 | H10: 145 | I10: 68 | J10: 5 | K10: 63 | L10: 65 | M10: 15 | N10: 50 | O10: 110 | P10: 23 | Q10: 87 | R10: 150 | S10: 50 | T10: 100 | U10: 90 | V10: 65 | W10: 25 | X10: 168 | Y10: 68 | Z10: 100
A11: 2020-12-12 | B11: سلامه | C11: 190 | D11: 25 | E11: 165 | F11: 123 | G11: 23 | H11: 100 | I11: 180 | J11: 20 | K11: 160 | L11: 115 | M11: 15 | N11: 100 | O11: 140 | P11: 25 | Q11: 115 | R11: 200 | S11: 16 | T11: 184 | U11: 135 | V11: 35 | W11: 100 | X11: 85 | Y11: 15 | Z11: 70
A12: 2020-12-13 | B12: فهد | C12: 260 | D12: 15 | E12: 245 | F12: 125 | G12: 15 | H12: 110 | I12: 168 | J12: 25 | K12: 143 | L12: 90 | M12: 30 | N12: 60 | O12: 113 | P12: 26 | Q12: 87 | R12: 170 | S12: 50 | T12: 120 | U12: 60 | V12: 30 | W12: 30 | X12: 68 | Y12: 6 | Z12: 62
A13: 2020-12-14 | B13: كبير | C13: 220 | D13: 50 | E13: 170 | F13: 160 | G13: 50 | H13: 110 | I13: 136 | J13: 30 | K13: 106 | L13: 236 | M13: 36 | N13: 200 | O13: 115 | P13: 24 | Q13: 91 | R13: 136 | S13: 36 | T13: 100 | U13: 85 | V13: 25 | W13: 60 | X13: 65 | Y13: 6 | Z13: 59
A14: 2020-12-15 | B14: رفيق | C14: 80 | D14: 15 | E14: 65 | F14: 110 | G14: 10 | H14: 100 | I14: 190 | J14: 30 | K14: 160 | L14: 330 | M14: 100 | N14: 230 | O14: 160 | P14: 30 | Q14: 130 | R14: 23 | S14: 5 | T14: 18 | U14: 90 | V14: 30 | W14: 60 | X14: 80 | Y14: 10 | Z14: 70
A15: 2020-12-16 | B15: رضوان | C15: 165 | D15: 18 | E15: 147 | F15: 180 | G15: 80 | H15: 100 | I15: 90 | J15: 20 | K15: 70 | L15: 250 | M15: 50 | N15: 200 | O15: 180 | P15: 50 | Q15: 130 | R15: 50 | S15: 5 | T15: 45 | U15: 112 | V15: 12 | W15: 100 | X15: 98 | Y15: 9 | Z15: 89
A16: 2020-12-17 | B16: الشحات | C16: 190 | D16: 19 | E16: 171 | F16: 90 | G16: 10 | H16: 80 | I16: 99 | J16: 15 | K16: 84 | L16: 265 | M16: 65 | N16: 200 | O16: 170 | P16: 50 | Q16: 120 | R16: 90 | S16: 25 | T16: 65 | U16: 98 | V16: 8 | W16: 90 | X16: 85 | Y16: 5 | Z16: 80
A17: 2020-12-18 | B17: عالم جير | C17: 280 | D17: 80 | E17: 200 | F17: 99 | G17: 9 | H17: 90 | I17: 60 | J17: 26 | K17: 34 | L17: 200 | M17: 15 | N17: 185 | O17: 160 | P17: 40 | Q17: 120 | R17: 70 | S17: 50 | T17: 20 | U17: 65 | V17: 15 | W17: 50 | X17: 66 | Y17: 6 | Z17: 60
A18: 2020-12-19 | B18: يسرى | C18: 168 | D18: 18 | E18: 150 | F18: 96 | G18: 6 | H18: 90 | I18: 50 | J18: 24 | K18: 26 | L18: 180 | M18: 16 | N18: 164 | O18: 110 | P18: 10 | Q18: 100 | R18: 85 | S18: 25 | T18: 60 | U18: 66 | V18: 6 | W18: 60 | X18: 56 | Y18: 6 | Z18: 50
A19: 2020-12-20 | B19: حسن | C19: 125 | D19: 25 | E19: 100 | F19: 66 | G19: 8 | H19: 58 | I19: 55 | J19: 30 | K19: 25 | L19: 136 | M19: 19 | N19: 117 | O19: 165 | P19: 65 | Q19: 100 | R19: 98 | S19: 8 | T19: 90 | U19: 165 | V19: 65 | W19: 100 | X19: 178 | Y19: 78 | Z19: 100
A20: 2020-12-21 | B20: زين | C20: 136 | D20: 36 | E20: 100 | F20: 35 | G20: 3 | H20: 32 | I20: 90 | J20: 20 | K20: 70 | L20: 114 | M20: 14 | N20: 100 | O20: 140 | P20: 10 | Q20: 130 | R20: 56 | S20: 6 | T20: 50 | U20: 36 | V20: 3 | W20: 33 | X20: 165 | Y20: 65 | Z20: 100
B21: الاجمالى | C21: =SUM(C5:C20) -> 2714 | D21: =SUM(D5:D20) -> 534 | E21: =SUM(E5:E20) -> 2180 | F21: 1788 | G21: 303 | H21: 1485 | I21: 1712 | J21: 375 | K21: 1337 | L21: 2400 | M21: 478 | N21: 1922 | O21: 2252 | P21: 511 | Q21: 1741 | R21: 1331 | S21: 360 | T21: 971 | U21: 1492 | V21: 484 | W21: 1008 | X21: 1609 | Y21: 366 | Z21: 1243
B29: سجل البحث
B30: من
B31: الى
B32: المندوب
B33: 6جالون
B34: 5جالون
B35: ابيضpet
B36: 15لتر
B37: 3لتر
B38: 2لتر
B39: كاسات
